{"text_format":"1","workbook":"xlsx","n_sheets":3,"sheets":["Анкета","Сбор данных","Tech"],"not_rendered":{"charts":0,"images":15,"macros":1,"external_links":0,"defined_names":60,"comments":0,"pivot_tables":0},"unopened":[],"bounds":{"document_bytes":16777216,"sheet_cells":100000,"rows_first":2000,"rows_last":500,"rows_between":2000,"halvings":0,"cell_chars":16384,"cell_head_chars":4096},"cells_cut":0,"cells_raw":0,"read":"whole","date_system":"1900"}

{"sheet":"Анкета","index":0,"n_rows":274,"n_cols":9,"rows_kept":274,"cut":false,"hidden":false,"merged":[[8,2,8,8],[158,2,158,6],[48,2,49,2],[50,2,50,6],[57,2,57,6],[68,2,69,2],[70,2,70,6],[122,2,122,6],[77,2,77,6],[92,2,92,6],[84,2,84,6],[106,2,107,2],[108,2,108,6],[152,2,152,6],[266,2,266,6],[234,2,235,2],[236,2,236,6],[243,2,243,6],[250,2,250,6],[10,2,10,8],[115,2,115,6],[129,2,129,6],[264,2,265,2],[196,2,197,2],[198,2,198,6],[206,2,206,6],[213,2,213,6],[221,2,221,6],[183,2,183,6],[143,2,144,2],[145,2,145,6],[11,2,11,8],[168,2,169,2],[170,2,170,6],[177,2,177,6]]}
[]
[]
[]
[]
[]
[null,"Анкета Заявителя инфраструктурной премии \"Импульс\""]
[]
[null,null,"Правила работы с Анкетой"]
[null,null,"Шаг 1. Выберите пункт \"Общие вопросы\" на панели в левой части Анкеты и заполните общую информацию о проекте: в \"Поле для заполнения\" - все ячейки, в \"Поля для уточнений\" и \"Примечания\" - только где требуется."]
[null,null,"Шаг 2. Выберите одну или несколько номинаций, в которой Вы хотите принять участие. Для этого нажмите соответствующую кнопку на панели в левой части Анкеты."]
[null,null,"Шаг 3. В рамках номинаций выберите сферы, в которых Ваш проект планируется к реализации. Для этого проставьте галочку (нажмите на пустой квадрат), относящуюся к сфере. \nДалее заполните все необходимые  функциональные поля данной Номинации / сферы: \"Поле для заполнения\" - все ячейки, \"Поля для уточнений\" и \"Примечания\" - только где требуется"]
[null,null,"Если ответом на вопрос является нулевое значение, проставьте \"0\"; если процентное, поставьте \"X%\"; если текстовое, внесите ответ в текстовом формате/ \"не применимо\" и иной ответ по смыслу (не \"0\").\nЕсли проект НЕ принимает участие в какой-то Номинации / сфере, не вносите данные в поля соответствующей Номинации/сферы.C12"]
[]
[]
[]
[null,"Общие вопросы"]
[]
[null,null,"Вопросы","Ед. измерения","Поле для заполнения","поле для уточнений","Комментарии по заполнению","Пояснения","Проверено и подтверждено \n(заполняет Оргкомитет)"]
[null,null,"Наименование проекта ","-",null,null,"-","-"]
[null,null,"Страна реализации проекта","-","Страны-члены ООН (в алфавитном порядке)",null,"При выборе \"другое, свой вариант\", в поле для уточнений необходимо вписать свой вариант ответа","-"]
[null,null,"Регион реализации проекта","-","Список регионов РФ в алфавитном порядке",null,"При выборе \"другое, свой вариант\", в поле для уточнений необходимо вписать свой вариант ответа","-"]
[null,null,"Наименование инициатора проекта (компании, реализующей проект (СПК), и материнского Холдинга/Группы, в составе которой создается проектная компания)","-",null,null,"-","-"]
[null,null,"ИНН инициатора проекта","-",null,null,"-","-"]
[null,null,"Организация, финансирующая проект, отличная от инициатора проекта (при наличии)","-",null,null,"-","-"]
[null,null,"Генеральный подрядчик проекта (при наличии подписанного договора генерального подряда на строительство проекта).","-",null,null,"-","-"]
[null,null,"Участие в национальном проекте","-",null,null,"1. Необходимо выбрать вариант из списка. \n2. Список национальных проектов находится в Пояснениях (ячейке справа ►►►). \n3. В поле для комментариев необходимо перечислить национальные проекты, в которых предполагается участие проектом","Список национальных проектов"]
[null,null,"Величина капитальных затрат проекта в рублях в ценах базового года","млрд руб., без НДС",null,null,"В случае если функциональной валютой проекта не является Российский рубль, в поле для уточнений необходимо указать способ пересчёта, и в документе для подтверждения пометить данный пункт","-"]
[null,null,"Объём привлечения иностранного финансирования в рублях в ценах базового года","млрд руб., без НДС",null,null,"В случае если функциональной валютой проекта не является Российский рубль, в поле для уточнений необходимо указать способ пересчёта, и в документе для подтверждения пометить данный пункт","-"]
[null,null,"Объём капитальных вложений проекта, финансируемых за счёт частных инвестиций, в ценах базового года","млрд руб., без НДС.",null,null,"В случае если функциональной валютой проекта не является Российский рубль, в поле для уточнений необходимо указать способ пересчёта, и в документе для подтверждения пометить данный пункт","-"]
[null,null,"Доля затрат на покупку отечественного оборудования в стоимости капитальных затрат проекта, связанных с покупкой оборудования","%",null,null,"Необходимо указать в формате с %\n","-"]
[null,null,"Наличие юридических лиц-нерезидентов в финансировании и управлении проектом","да/нет",null,null,"При выбора ответа \"Да\" необходимо в поле для уточнений перечислить нерезидентов и расписать их роли в финансировании и (или) управлении проектом","-"]
[null,null,"Текущая стадия реализации проекта","-","Стадии реализации проекта",null,"Необходимо выбрать вариант из списка\n\n","-"]
[null,null,"Базовый год, используемый в финансовой модели проекта","год",null,null,"Укажите базовый год в формате \"XXXX\", без указания слова \"год\" в конце","-"]
[null,null,"Дата планируемого или фактического начала реализации проекта","дата",null,null,"Укажите в формате ДД.ММ.ГГГГ","-"]
[null,null,"Дата планируемого или фактического ввода проекта в эксплуатацию ","дата",null,null,"Укажите в формате ДД.ММ.ГГГГ","-"]
[null,null,"Дата планируемого или фактического выхода проекта на целевую загрузку","дата",null,null,"В случае если выход на целевую загрузку не достигается в прогнозном периоде, необходимо указать год выхода на максимальную реализацию продукции. Укажите в формате ДД.ММ.ГГГГ.","Выход проекта на целевую загрузку - достижение максимального уровня функционирования объекта, при котором он способен стабильно обеспечивать предусмотренный проектом объем продукции, услуг или выполнения функций в соответствии с установленными стандартами качества и нормативами"]
[null,null,"Недисконтированный срок окупаемости проекта","лет",null,null,"-","Недисконтированный срок окупаемости считается как время, за которое сумма поступлений от проекта полностью покроет первоначальные вложения"]
[null,null,"Недисконтированный срок окупаемости проекта для Бюджетов всех уровней","лет",null,null,"В случае если Бюджетное финансирование, в т.ч. в форме субсидий, не привлекалось, вводится 0\n","Недисконтированный срок окупаемости для Бюджета считается как период, за который сумма налоговых и иных поступлений от проекта полностью покроет первоначальные вложения Бюджета в проект"]
[null,null,"Количество созданных в рамках проекта рабочих мест ","ед.",null,null,"Указывается общее количество созданных рабочих мест при выходе проекта на целевую загрузку","-"]
[null,null,"Проект реализуется в рамках международной транспортной, технологической или научно-технической кооперации","да/нет",null,null,"В поле для уточнений необходимо перечислить виды кооперации и пояснить суть кооперации","-"]
[null,null,"Компания, реализующая проект, зарегистрирована на одной из территорий с преференциальным режимом (ОЭЗ, ТОР и СПВ)","-",null,null,"1. Выберите вариант из списка\n2. Список территорий с преференциальным режимом находится в Пояснениях (ячейке справа ►►►) \n2. В поле для комментариев необходимо перечислить ОЭЗ, ТОР и СПВ, на которых зарегистрирована компания, реализующая проект","Список ОЭЗ, ТОР и СПВ"]
[null,null,"Доля выручки (бюджет доходов) от международного бизнеса в общей выручке (бюджет доходов)","%",null,null,"Указать долю экспортной выручки в совокупных доходах при выходе проекта на целевую загрузку в формате с %.","Доля считается как отношение выручки проекта от реализации экспортируемой продукции к совокупной выручке проекта. "]
[null,null,"Описание проекта","-",null,null,"Опишите проект, указав основные цели реализации проекта, ожидаемые результаты, информацию об уникальных чертах проекта (роль, значимость) и т.п., не более 800 знаков с пробелами","-"]
[]
[]
[null,"Разработка и применение искусственного интеллекта"]
[]
[null,null,"Вопросы","Ед. измерения","Поле для заполнения","поле для уточнений","Комментарии","Пояснения","Проверено и подтверждено"]
[null,null,"В каких сферах предполагается реализация Вашего проекта?","Создание и эксплуатация дата-центров","Разработка продуктов в области ИИ"]
[]
[null,null,"Создание и эксплуатация дата-центров"]
[null,null,"Выручка проекта при выходе на целевую загрузку, в год","млрд руб., без НДС, в год",null,null,"-","-"]
[null,null,"Максимальная мощность создаваемой в рамках проекта инфраструктуры ","МВт",null,null,"-","-"]
[null,null,"Максимальная производительность создаваемой в рамках проекта инфраструктуры","TFLOPS",null,null,"-","-"]
[null,null,"Доля возобновляемых источников энергии в общем объёме потребления объектом","%",null,null,"В поле для уточнений необходимо указать виды возобновляемых источников энергии, потребляемые объектом (в формате с %)","-"]
[null,null,"Проект предполагает сотрудничество с высшими образовательными учреждениями и исследовательскими институтами, в том числе иностранными","да/нет",null,null,"1. Выберите вариант из списка\n2. В поле для уточнений необходимо указать учреждение(я)","-"]
[null,null,"Проект предполагает использование инновационных технологий согласно перечню","да/нет",null,"Список технологий","1. Выберите вариант из списка\n2. В выпадающем списке слева необходимо выбрать соответствующую инновационную технологию (◄◄◄)","-"]
[null,null,"Разработка продуктов в области ИИ"]
[null,null,"Выручка проекта при выходе на целевую загрузку","млрд руб., без НДС, в год",null,null,"-","-"]
[null,null,"Количество активных пользователей продукта при выходе на целевую загрузку","чел. в год",null,null,"-","-"]
[null,null,"Потенциальная экономия ввиду снижения затрат при внедрении продуктов проекта в области ИИ","млрд руб., без НДС, в год",null,null,"-","-"]
[null,null,"Оценка F1 (точность) по результатам работы продукта, созданного в области ИИ","-",null,null,"Укажите значение от 0 до 1","-"]
[null,null,"Проект предполагает сотрудничество с высшими образовательными учреждениями и исследовательскими институтами, в том числе иностранными","да/нет",null,null,"1. Выберите вариант из списка\n2. В поле для уточнений необходимо указать учреждение(я)","-"]
[]
[]
[null,"Развитие Арктики и Дальнего Востока"]
[]
[null,null,"Вопросы","Ед. измерения","Поле для заполнения","поле для уточнений","Комментарии","Пояснения","Проверено и подтверждено"]
[null,null,"В каких сферах предполагается реализация Вашего проекта?","Транспортная инфраструктура для грузоперевозок","Транспортная инфраструктура для пассажирских перевозок","Производство","Энергетика"]
[]
[null,null,"Транспортная инфраструктура для грузоперевозок"]
[null,null,"Выручка проекта при выходе на целевую загрузку","млрд руб., без НДС, в год",null,null,"-","-"]
[null,null,"Пропускная способность транспортного объекта проекта","млн т в год",null,null,"-","-"]
[null,null,"Средняя загрузка транспортного объекта за период от начала операционной деятельности до выхода проекта на окупаемость","%",null,null,"Необходимо указать в формате с %\n","-"]
[null,null,"Доля возобновляемых источников энергии в общем объёме потребления объектом","%",null,null,"В поле для уточнений необходимо указать виды возобновляемых источников энергии, потребляемые объектом (в формате с %)","-"]
[null,null,"Класс устойчивости объекта проекта согласно системе КЛЕВЕР","-","Класс устойчивости проекта по системе КЛЕВЕР",null,"1. Выберите вариант из списка\n2. В прилагаемом подтверждающем документе отметьте данный пункт и прокомментируйте, почему вы считаете, что объект соответствует выбранному уровню (вложите копию полученного сертификата / отметьте способ получения результатов)\n3. Если класс устойчивости объекта не отражается, введите 0","-"]
[null,null,"Проект предполагает использование инновационных технологий согласно перечню","да/нет",null,"Список технологий","1. Выберите вариант из списка\n2. В выпадающем списке слева необходимо выбрать соответствующую инновационную технологию (◄◄◄)","-"]
[null,null,"Транспортная инфраструктура для пассажирских перевозок"]
[null,null,"Выручка проекта при выходе на целевую загрузку","млрд руб., без НДС, в год",null,null,"-","-"]
[null,null,"Пропускная способность транспортного объекта проекта","тыс. пасс. в год",null,null,"-","-"]
[null,null,"Средняя загрузка транспортного объекта за период от начала операционной деятельности до выхода проекта на окупаемость","%",null,null,"Необходимо указать в формате с %\n","-"]
[null,null,"Доля возобновляемых источников энергии в общем объёме потребления объектом","%",null,null,"В поле для уточнений необходимо указать виды возобновляемых источников энергии, потребляемые объектом (в формате с %)","-"]
[null,null,"Класс устойчивости объекта проекта согласно системе КЛЕВЕР","-","Класс устойчивости проекта по системе КЛЕВЕР",null,"1. Выберите вариант из списка\n2. В прилагаемом подтверждающем документе отметьте данный пункт и прокомментируйте, почему вы считаете, что объект соответствует выбранному уровню (вложите копию полученного сертификата / отметьте способ получения результатов)\n3. Если класс устойчивости объекта не отражается, введите 0","-"]
[null,null,"Проект предполагает использование инновационных технологий согласно перечню","да/нет",null,"Список технологий","1. Выберите вариант из списка\n2. В выпадающем списке слева необходимо выбрать соответствующую инновационную технологию (◄◄◄)","-"]
[null,null,"Производство"]
[null,null,"Выручка проекта при выходе на целевую загрузку","млрд руб., без НДС, в год",null,null,"-","-"]
[null,null,"Доля возобновляемых источников энергии в общем объёме потребления объектом","%",null,null,"В поле для уточнений необходимо указать виды возобновляемых источников энергии, потребляемые объектом (в формате с %)","-"]
[null,null,"Класс устойчивости объекта проекта согласно системе КЛЕВЕР","-","Класс устойчивости проекта по системе КЛЕВЕР",null,"1. Выберите вариант из списка\n2. В прилагаемом подтверждающем документе отметьте данный пункт и прокомментируйте, почему вы считаете, что объект соответствует выбранному уровню (вложите копию полученного сертификата / отметьте способ получения результатов)\n3. Если класс устойчивости объекта не отражается, введите 0","-"]
[null,null,"Проект предполагает использование инновационных технологий согласно перечню","да/нет",null,"Список технологий","1. Выберите вариант из списка\n2. В выпадающем списке слева необходимо выбрать соответствующую инновационную технологию (◄◄◄)","-"]
[null,null,"Продукция проекта предполагает работу с использованием инновационных технологий","да/нет",null,"Список технологий","1. Выберите вариант из списка\n2. В выпадающем списке слева необходимо выбрать соответствующую инновационную технологию (◄◄◄)","-"]
[null,null,"Проект предполагает сотрудничество с высшими образовательными учреждениями и исследовательскими институтами, в том числе иностранными","да/нет",null,null,"1. Выберите вариант из списка\n2. В поле для уточнений необходимо указать учреждение(я)","-"]
[null,null,"Проект реализуется в моногороде","да/нет",null,"Список моногородов","1. Выберите вариант из списка\n2. В выпадающем списке слева необходимо выбрать соответствующий моногород (◄◄◄)","-"]
[null,null,"Энергетика"]
[null,null,"Выручка проекта при выходе на целевую загрузку","млрд руб., без НДС, в год",null,null,"-","-"]
[null,null,"Объём генерации электроэнергии, при выходе проекта на целевую загрузку, в год","МВт*ч в год",null,null,"Необходимо заполнить информацию  по одному из двух пунктов: по текущему или следующему за ним","-"]
[null,null,"Протяженность линий электропередач для поставки электроэнергии в регионы Арктики и Дальнего Востока, строящихся/модернизирующихся проектом, при выходе на целевую загрузку, в год","км ",null,null,"Необходимо заполнить информацию  по одному из двух пунктов: по текущему или предыдущему","-"]
[null,null,"Количество потребителей электроэнергии, генерируемой и (или) поставляемой в регионы Арктики и Дальнего Востока проектом, при выходе на целевую загрузку, в год","чел.",null,null,"-","-"]
[null,null,"Класс устойчивости объекта проекта согласно системе КЛЕВЕР","-","Класс устойчивости проекта по системе КЛЕВЕР",null,"1. Выберите вариант из списка\n2. В прилагаемом подтверждающем документе отметьте данный пункт и прокомментируйте, почему вы считаете, что объект соответствует выбранному уровню (вложите копию полученного сертификата / отметьте способ получения результатов)\n3. Если класс устойчивости объекта не отражается, введите 0","-"]
[null,null,"Процент потерь (= ( энергия поданная в сеть - энергия потребленная потребителями)/энергия поданная в сеть*100%)","%",null,null,"Необходимо заполнить информацию  по одному из двух пунктов: по текущему или предыдущему (в формате с %)","-"]
[null,null,"Доля возобновляемых источников энергии в общем объёме потребления объектом","%",null,null,"В поле для уточнений необходимо указать виды возобновляемых источников энергии, потребляемые объектом (в формате с %)","-"]
[null,null,"Проект предполагает использование инновационных технологий согласно перечню","да/нет",null,"Список технологий","1. Выберите вариант из списка\n2. В выпадающем списке слева необходимо выбрать соответствующую инновационную технологию (◄◄◄)","-"]
[]
[]
[null,"Международная кооперация "]
[]
[null,null,"Вопросы","Ед. измерения","Поле для заполнения","поле для уточнений","Комментарии","Пояснения","Проверено и подтверждено"]
[null,null,"В каких сферах предполагается реализация Вашего проекта?","Транспортная инфраструктура для грузовых перевозок","Транспортная инфраструктура для пассажирских перевозок","Производство","Энергетика"]
[]
[null,null,"Транспортная инфраструктура для грузовых перевозок"]
[null,null,"Выручка проекта при выходе на целевую загрузку","млрд руб., без НДС, в год",null,null,"-","-"]
[null,null,"Пропускная способность транспортного объекта проекта","млн т в год",null,null,"-","-"]
[null,null,"Средняя загрузка транспортного объекта за период от начала операционной деятельности до выхода проекта на окупаемость","%",null,null,"Необходимо указать в формате с %\n","-"]
[null,null,"Доля возобновляемых источников энергии в общем объёме потребления объектом","%",null,null,"В поле для уточнений необходимо указать виды возобновляемых источников энергии, потребляемые объектом (в формате с %)","-"]
[null,null,"Класс устойчивости объекта проекта согласно системе КЛЕВЕР","-","Класс устойчивости проекта по системе КЛЕВЕР",null,"1. Выберите вариант из списка\n2. В прилагаемом подтверждающем документе отметьте данный пункт и прокомментируйте, почему вы считаете, что объект соответствует выбранному уровню (вложите копию полученного сертификата / отметьте способ получения результатов)\n3. Если класс устойчивости объекта не отражается, введите 0","-"]
[null,null,"Проект предполагает использование инновационных технологий согласно перечню","да/нет",null,"Список технологий","1. Выберите вариант из списка\n2. В выпадающем списке слева необходимо выбрать соответствующую инновационную технологию (◄◄◄)","-"]
[null,null,"Транспортная инфраструктура для пассажирских перевозок"]
[null,null,"Выручка проекта при выходе на целевую загрузку","млрд руб., без НДС, в год",null,null,"-","-"]
[null,null,"Пропускная способность транспортного объекта проекта","тыс. пасс. в год",null,null,"-","-"]
[null,null,"Средняя загрузка транспортного объекта за период от начала операционной деятельности до выхода проекта на окупаемость","%",null,null,"Необходимо указать в формате с %\n","-"]
[null,null,"Доля возобновляемых источников энергии в общем объёме потребления объектом","%",null,null,"В поле для уточнений необходимо указать виды возобновляемых источников энергии, потребляемые объектом (в формате с %)","-"]
[null,null,"Класс устойчивости объекта проекта согласно системе КЛЕВЕР","-","Класс устойчивости проекта по системе КЛЕВЕР",null,"1. Выберите вариант из списка\n2. В прилагаемом подтверждающем документе отметьте данный пункт и прокомментируйте, почему вы считаете, что объект соответствует выбранному уровню (вложите копию полученного сертификата / отметьте способ получения результатов)\n3. Если класс устойчивости объекта не отражается, введите 0","-"]
[null,null,"Проект предполагает использование инновационных технологий согласно перечню","да/нет",null,"Список технологий","1. Выберите вариант из списка\n2. В выпадающем списке слева необходимо выбрать соответствующую инновационную технологию (◄◄◄)","-"]
[null,null,"Производство"]
[null,null,"Выручка проекта при выходе на целевую загрузку","млрд руб., без НДС, в год",null,null,"-","-"]
[null,null,"Доля возобновляемых источников энергии в общем объёме потребления объектом","%",null,null,"В поле для уточнений необходимо указать виды возобновляемых источников энергии, потребляемые объектом (в формате с %)","-"]
[null,null,"Класс устойчивости объекта проекта согласно системе КЛЕВЕР","-","Класс устойчивости проекта по системе КЛЕВЕР",null,"1. Выберите вариант из списка\n2. В прилагаемом подтверждающем документе отметьте данный пункт и прокомментируйте, почему вы считаете, что объект соответствует выбранному уровню (вложите копию полученного сертификата / отметьте способ получения результатов)\n3. Если класс устойчивости объекта не отражается, введите 0","-"]
[null,null,"Проект предполагает использование инновационных технологий согласно перечню","да/нет",null,"Список технологий","1. Выберите вариант из списка\n2. В выпадающем списке слева необходимо выбрать соответствующую инновационную технологию (◄◄◄)","-"]
[null,null,"Продукция проекта предполагает работу с использованием инновационных технологий","да/нет",null,"Список технологий","1. Выберите вариант из списка\n2. В выпадающем списке слева необходимо выбрать соответствующую инновационную технологию (◄◄◄)","-"]
[null,null,"Проект предполагает сотрудничество с высшими образовательными учреждениями и исследовательскими институтами, в том числе иностранными","да/нет",null,null,"1. Выберите вариант из списка\n2. В поле для уточнений необходимо указать учреждение(я)","-"]
[null,null,"Энергетика"]
[null,null,"Выручка проекта при выходе на целевую загрузку","млрд руб., без НДС, в год",null,null,"-","-"]
[null,null,"Объём генерации электроэнергии, при выходе проекта на целевую загрузку, в год","МВт*ч в год",null,null,"Необходимо заполнить информацию  по одному из двух пунктов: по текущему или следующему за ним","-"]
[null,null,"Протяженность линий электропередач для поставки электроэнергии в регионы Арктики и Дальнего Востока, строящихся/модернизирующихся проектом, при выходе на целевую загрузку, в год","км ",null,null,"Необходимо заполнить информацию  по одному из двух пунктов: по текущему или предыдущему","-"]
[null,null,"Количество потребителей электроэнергии, генерируемой и (или) поставляемой в регионы Арктики и Дальнего Востока проектом, при выходе на целевую загрузку, в год","чел.",null,null,"-","-"]
[null,null,"Класс устойчивости объекта проекта согласно системе КЛЕВЕР","-","Класс устойчивости проекта по системе КЛЕВЕР",null,"1. Выберите вариант из списка\n2. В прилагаемом подтверждающем документе отметьте данный пункт и прокомментируйте, почему вы считаете, что объект соответствует выбранному уровню (вложите копию полученного сертификата / отметьте способ получения результатов)\n3. Если класс устойчивости объекта не отражается, введите 0","-"]
[null,null,"Процент потерь (= ( энергия поданная в сеть - энергия потребленная потребителями)/энергия поданная в сеть*100%)","%",null,null,"Необходимо заполнить информацию  по одному из двух пунктов: по текущему или предыдущему (в формате с %)","-"]
[null,null,"Доля возобновляемых источников энергии в общем объёме потребления объектом","%",null,null,"В поле для уточнений необходимо указать виды возобновляемых источников энергии, потребляемые объектом (в формате с %)","-"]
[null,null,"Проект предполагает использование инновационных технологий согласно перечню","да/нет",null,"Список технологий","1. Выберите вариант из списка\n2. В выпадающем списке слева необходимо выбрать соответствующую инновационную технологию (◄◄◄)","-"]
[]
[]
[null,"Образование XXI века"]
[]
[null,null,"Вопросы","Ед. измерения","Поле для заполнения","поле для уточнений","Комментарии","Пояснения","Проверено и подтверждено"]
[null,null,"В каких сферах предполагается реализация Вашего проекта?","Высшее образование / СПО","Среднее общее образование","Онлайн-платформы"]
[]
[null,null,"Высшее образование / СПО"]
[null,null,"Выручка проекта при выходе на целевую загрузку","млрд руб., без НДС, в год",null,null,"-","-"]
[null,null,"Число студентов при выходе на целевую загрузку в год","чел. в год",null,null,"-","-"]
[null,null,"Количество компьютеров, которыми оснащён проект, при выходе на целевую загрузку","шт.",null,null,"-","-"]
[null,null,"Количество получателей бесплатных услуг при выходе проекта на целевую загрузку, в год","шт.",null,null,"-","-"]
[null,null,"Класс устойчивости объекта проекта согласно системе КЛЕВЕР","-","Класс устойчивости проекта по системе КЛЕВЕР",null,"1. Выберите вариант из списка\n2. В прилагаемом подтверждающем документе отметьте данный пункт и прокомментируйте, почему вы считаете, что объект соответствует выбранному уровню (вложите копию полученного сертификата / отметьте способ получения результатов)\n3. Если класс устойчивости объекта не отражается, введите 0","-"]
[null,null,"Наличие в программе (или факультативно) дисциплин в области развития и применения инновационных технологий, а также инфраструктуры их преподавания","да/нет",null,"Список технологий","1. Выберите вариант из списка\n2. В выпадающем списке слева необходимо выбрать соответствующую инновационную технологию (◄◄◄)","-"]
[null,null,"Среднее общее образование"]
[null,null,"Число учеников при выходе на целевую загрузку, в год","чел. в год",null,null,"-","-"]
[null,null,"Количество компьютеров, которыми оснащён проект, при выходе на целевую загрузку","шт.",null,null,"-","-"]
[null,null,"Класс устойчивости объекта проекта согласно системе КЛЕВЕР","-","Класс устойчивости проекта по системе КЛЕВЕР",null,"1. Выберите вариант из списка\n2. В прилагаемом подтверждающем документе отметьте данный пункт и прокомментируйте, почему вы считаете, что объект соответствует выбранному уровню (вложите копию полученного сертификата / отметьте способ получения результатов)\n3. Если класс устойчивости объекта не отражается, введите 0","-"]
[null,null,"Проект предполагает сотрудничество с высшими образовательными учреждениями и исследовательскими институтами, в том числе иностранными","да/нет",null,null,"1. Выберите вариант из списка\n2. В поле для уточнений необходимо указать учреждение(я)","-"]
[null,null,"Наличие в программе (или факультативно) дисциплин в области развития и применения инновационных технологий, а также инфраструктуры их преподавания","да/нет",null,"Список технологий","1. Выберите вариант из списка\n2. В выпадающем списке слева необходимо выбрать соответствующую инновационную технологию (◄◄◄)","-"]
[null,null,"Онлайн-платформы"]
[null,null,"Выручка проекта при выходе на целевую загрузку","млрд руб., без НДС, в год",null,null,"-","-"]
[null,null,"Число студентов при выходе на целевую загрузку в год","чел. в год",null,null,"-","-"]
[null,null,"Количество бюджетных мест при выходе проекта на целевую загрузку","шт.",null,null,"-","-"]
[null,null,"Наличие в программе (или факультативно) дисциплин в области развития и применения инновационных технологий, а также инфраструктуры их преподавания","да/нет",null,"Список технологий","1. Выберите вариант из списка\n2. В выпадающем списке слева необходимо выбрать соответствующую инновационную технологию (◄◄◄)","-"]
[]
[]
[null,"Здоровье нации"]
[]
[null,null,"Вопросы","Ед. измерения","Поле для заполнения","поле для уточнений","Комментарии","Пояснения","Проверено и подтверждено"]
[null,null,"В каких сферах предполагается реализация Вашего проекта?","Медицинские учреждения","Производство медицинских препаратов","Производство медицинского оборудования"]
[]
[null,null,"Медицинские учреждения"]
[null,null,"Выручка проекта при выходе на целевую загрузку","млрд руб., без НДС, в год",null,null,"-","-"]
[null,null,"Количество пациентов при выходе на целевую загрузку, в год","чел. в год",null,null,"-","-"]
[null,null,"Количество получателей бесплатных услуг при выходе проекта на целевую загрузку, в год","чел. в год",null,null,"-","-"]
[null,null,"Класс устойчивости объекта проекта согласно системе КЛЕВЕР","-","Класс устойчивости проекта по системе КЛЕВЕР",null,"1. Выберите вариант из списка\n2. В прилагаемом подтверждающем документе отметьте данный пункт и прокомментируйте, почему вы считаете, что объект соответствует выбранному уровню (вложите копию полученного сертификата / отметьте способ получения результатов)\n3. Если класс устойчивости объекта не отражается, введите 0","-"]
[null,null,"Использование дорогостоящего современного оборудования","да/нет",null,null,"1. Необходимо выбрать вариант из списка\n2. Список дорогостоящего оборудования находится в Пояснениях (ячейке справа ►►►) \n3. В поле для уточнений необходимо перечислить виды оборудования","Список дорогостоящего оборудования для медицинских учреждений"]
[null,null,"Проект предполагает сотрудничество с высшими образовательными учреждениями и исследовательскими институтами, в том числе иностранными","да/нет",null,null,"1. Выберите вариант из списка\n2. В поле для уточнений необходимо указать учреждение(я)","-"]
[null,null,"Производство медицинских препаратов"]
[null,null,"Выручка проекта при выходе на целевую загрузку","млрд руб., без НДС, в год",null,null,"-","-"]
[null,null,"Класс устойчивости объекта проекта согласно системе КЛЕВЕР","-","Класс устойчивости проекта по системе КЛЕВЕР",null,"1. Выберите вариант из списка\n2. В прилагаемом подтверждающем документе отметьте данный пункт и прокомментируйте, почему вы считаете, что объект соответствует выбранному уровню (вложите копию полученного сертификата / отметьте способ получения результатов)\n3. Если класс устойчивости объекта не отражается, введите 0","-"]
[null,null,"Доля возобновляемых источников энергии в общем объёме потребления объектом","%",null,null,"В поле для уточнений необходимо указать виды возобновляемых источников энергии, потребляемые объектом (в формате с %)","-"]
[null,null,"Проект предполагает использование инновационных технологий согласно перечню","да/нет",null,"Список технологий","1. Выберите вариант из списка\n2. В выпадающем списке слева необходимо выбрать соответствующую инновационную технологию (◄◄◄)","-"]
[null,null,"Проект предполагает сотрудничество с высшими образовательными учреждениями и исследовательскими институтами, в том числе иностранными","да/нет",null,null,"1. Выберите вариант из списка\n2. В поле для уточнений необходимо указать учреждение(я)","-"]
[null,null,"Производство медицинского оборудования"]
[null,null,"Выручка проекта при выходе на целевую загрузку","млрд руб., без НДС, в год",null,null,"-","-"]
[null,null,"Класс устойчивости объекта проекта согласно системе КЛЕВЕР","-","Класс устойчивости проекта по системе КЛЕВЕР",null,"1. Выберите вариант из списка\n2. В прилагаемом подтверждающем документе отметьте данный пункт и прокомментируйте, почему вы считаете, что объект соответствует выбранному уровню (вложите копию полученного сертификата / отметьте способ получения результатов)\n3. Если класс устойчивости объекта не отражается, введите 0","-"]
[null,null,"Доля возобновляемых источников энергии в общем объёме потребления объектом","%",null,null,"В поле для уточнений необходимо указать виды возобновляемых источников энергии, потребляемые объектом (в формате с %)","-"]
[null,null,"Проект предполагает использование инновационных технологий согласно перечню","да/нет",null,"Список технологий","1. Выберите вариант из списка\n2. В выпадающем списке слева необходимо выбрать соответствующую инновационную технологию (◄◄◄)","-"]
[null,null,"Продукция проекта предполагает работу с использованием инновационных технологий","да/нет",null,"Список технологий","1. Выберите вариант из списка\n2. В выпадающем списке слева необходимо выбрать соответствующую инновационную технологию (◄◄◄)","-"]
[null,null,"Проект предполагает сотрудничество с высшими образовательными учреждениями и исследовательскими институтами, в том числе иностранными","да/нет",null,null,"1. Выберите вариант из списка\n2. В поле для уточнений необходимо указать учреждение(я)","-"]
[null,null,"Проект реализуется в моногороде","да/нет",null,"Список моногородов","1. Выберите вариант из списка\n2. В выпадающем списке слева необходимо выбрать соответствующий моногород (◄◄◄)","-"]
[]
[]
[null,"Качественная городская среда"]
[]
[null,null,"Вопросы","Ед. измерения","Поле для заполнения","поле для уточнений","Комментарии","Пояснения","Проверено и подтверждено"]
[null,null,"В каких сферах предполагается реализация Вашего проекта?","Жилищное строительство","Транспортная инфраструктура","Жилищно-коммунальная инфраструктура","Сохранение исторического облика города"]
[]
[null,null,"Жилищное строительство"]
[null,null,"Выручка проекта при выходе на целевую загрузку","млрд руб., без НДС, в год",null,null,"-","-"]
[null,null,"Площадь застройки объекта","м2",null,null,"-","-"]
[null,null,"Плотность застройки объекта","тыс. кв. м/га",null,null,"-","-"]
[null,null,"Количество потенциальных жителей","чел.",null,null,"-","-"]
[null,null,"Класс устойчивости объекта проекта согласно системе КЛЕВЕР","-","Класс устойчивости проекта по системе КЛЕВЕР",null,"1. Выберите вариант из списка\n2. В прилагаемом подтверждающем документе отметьте данный пункт и прокомментируйте, почему вы считаете, что объект соответствует выбранному уровню (вложите копию полученного сертификата / отметьте способ получения результатов)\n3. Если класс устойчивости объекта не отражается, введите 0","-"]
[null,null,"Доля возобновляемых источников энергии в общем объёме потребления объектом","%",null,null,"В поле для уточнений необходимо указать виды возобновляемых источников энергии, потребляемые объектом (в формате с %)","-"]
[null,null,"Проект предполагает использование инновационных технологий согласно перечню","да/нет",null,"Список технологий","1. Выберите вариант из списка\n2. В выпадающем списке слева необходимо выбрать соответствующую инновационную технологию (◄◄◄)","-"]
[null,null,"Транспортная инфраструктура"]
[null,null,"Выручка проекта при выходе на целевую загрузку","млрд руб., без НДС, в год",null,null,"-","-"]
[null,null,"Пропускная способность транспортного объекта","тыс. пасс. в год",null,null,"-","-"]
[null,null,"Средняя загрузка транспортного объекта за период от начала операционной деятельности до выхода проекта на окупаемость, в год","тыс. пасс. в год",null,null,"-","-"]
[null,null,"Класс устойчивости объекта проекта согласно системе КЛЕВЕР","-","Класс устойчивости проекта по системе КЛЕВЕР",null,"1. Выберите вариант из списка\n2. В прилагаемом подтверждающем документе отметьте данный пункт и прокомментируйте, почему вы считаете, что объект соответствует выбранному уровню (вложите копию полученного сертификата / отметьте способ получения результатов)\n3. Если класс устойчивости объекта не отражается, введите 0","-"]
[null,null,"Доля возобновляемых источников энергии в общем объёме потребления объектом","%",null,null,"В поле для уточнений необходимо указать виды возобновляемых источников энергии, потребляемые объектом (в формате с %)","-"]
[null,null,"Проект предполагает использование инновационных технологий согласно перечню","да/нет",null,"Список технологий","1. Выберите вариант из списка\n2. В выпадающем списке слева необходимо выбрать соответствующую инновационную технологию (◄◄◄)","-"]
[null,null,"Жилищно-коммунальная инфраструктура"]
[null,null,"Выручка проекта при выходе на целевую загрузку, за год","млрд руб., без НДС, в год",null,null,"-","-"]
[null,null,"Количество активных пользователей, при выходе проекта на целевую загрузку, в год","чел. в год",null,null,"-","-"]
[null,null,"Протяжённость инженерных сетей, строимых (модернизируемых) объектом","км.",null,null,"-","-"]
[null,null,"Мощность создаваемого (модернизируемого) объекта инфраструктуры в сфере ЖКХ","МВт",null,null,"-","-"]
[null,null,"Класс устойчивости объекта проекта согласно системе КЛЕВЕР","-","Класс устойчивости проекта по системе КЛЕВЕР",null,"1. Выберите вариант из списка\n2. В прилагаемом подтверждающем документе отметьте данный пункт и прокомментируйте, почему вы считаете, что объект соответствует выбранному уровню (вложите копию полученного сертификата / отметьте способ получения результатов)\n3. Если класс устойчивости объекта не отражается, введите 0","-"]
[null,null,"Доля возобновляемых источников энергии в общем объёме потребления объектом","%",null,null,"В поле для уточнений необходимо указать виды возобновляемых источников энергии, потребляемые объектом (в формате с %)","-"]
[null,null,"Проект предполагает использование инновационных технологий согласно перечню","да/нет",null,"Список технологий","1. Выберите вариант из списка\n2. В выпадающем списке слева необходимо выбрать соответствующую инновационную технологию (◄◄◄)","-"]
[null,null,"Сохранение исторического облика города"]
[null,null,"Выручка проекта при выходе на целевую загрузку","млрд руб., без НДС, в год",null,null,"-","-"]
[null,null,"Площадь застройки объекта на месте расположения существующего здания/сооружения культурно-исторического характера","м2",null,null,"Необходимо заполнить информацию  по одному из двух пунктов: по текущему или следующему за ним","-"]
[null,null,"Общая площадь восстановленных или адаптированных зданий и сооружений","м2",null,null,"Необходимо заполнить информацию  по одному из двух пунктов: по текущему или предыдущему","-"]
[null,null,"Проект предполагает сотрудничество с высшими образовательными учреждениями и исследовательскими институтами, в том числе иностранными","да/нет",null,null,"1. Выберите вариант из списка\n2. В поле для уточнений необходимо указать учреждение(я)","-"]
[null,null,"Значения проекта для культурно-исторического наследия (региональное / федеральное / ЮНЕСКО)","да/нет",null,null,"В поле для уточнений необходимо перечислить объекты культурного наследия","-"]
[null,null,"Проект предполагает использование инновационных технологий согласно перечню","да/нет",null,"Список технологий","1. Выберите вариант из списка\n2. В выпадающем списке слева необходимо выбрать соответствующую инновационную технологию (◄◄◄)","-"]
[null,null,"Проект предполагает адаптацию объектов под современное использование","да/нет",null,null,"В поле для уточнений необходимо указать функциональность объекта после завершения работа по сохранению объекта","-"]
[]
[]
[null,"Инфраструктурный каркас страны"]
[]
[null,null,"Вопросы","Ед. измерения","Поле для заполнения","поле для уточнений","Комментарии",null,"Проверено и подтверждено"]
[null,null,"В каких сферах предполагается реализация Вашего проекта?","Транспортная инфраструктура для грузоперевозок","Транспортная инфраструктура для пассажирских перевозок","Энергетика"]
[]
[null,null,"Транспортная инфраструктура для грузоперевозок"]
[null,null,"Выручка проекта при выходе на целевую загрузку","млрд руб., без НДС, в год",null,null,"-","-"]
[null,null,"Пропускная способность транспортного объекта проекта","млн т в год",null,null,"-","-"]
[null,null,"Средняя загрузка транспортного объекта за период от начала операционной деятельности до выхода проекта на окупаемость","%",null,null,"Необходимо указать в формате с %\n","-"]
[null,null,"Доля возобновляемых источников энергии в общем объёме потребления объектом","%",null,null,"В поле для уточнений необходимо указать виды возобновляемых источников энергии, потребляемые объектом (в формате с %)","-"]
[null,null,"Класс устойчивости объекта проекта согласно системе КЛЕВЕР","-","Класс устойчивости проекта по системе КЛЕВЕР",null,"1. Выберите вариант из списка\n2. В прилагаемом подтверждающем документе отметьте данный пункт и прокомментируйте, почему вы считаете, что объект соответствует выбранному уровню (вложите копию полученного сертификата / отметьте способ получения результатов)\n3. Если класс устойчивости объекта не отражается, введите 0","-"]
[null,null,"Проект предполагает использование инновационных технологий согласно перечню","да/нет",null,"Список технологий","1. Выберите вариант из списка\n2. В выпадающем списке слева необходимо выбрать соответствующую инновационную технологию (◄◄◄)","-"]
[null,null,"Транспортная инфраструктура для пассажирских перевозок"]
[null,null,"Выручка проекта при выходе на целевую загрузку","млрд руб., без НДС, в год",null,null,"-","-"]
[null,null,"Пропускная способность транспортного объекта проекта","тыс. пасс. в год",null,null,"-","-"]
[null,null,"Средняя загрузка транспортного объекта за период от начала операционной деятельности до выхода проекта на окупаемость","%",null,null,"Необходимо указать в формате с %\n","-"]
[null,null,"Доля возобновляемых источников энергии в общем объёме потребления объектом","%",null,null,"В поле для уточнений необходимо указать виды возобновляемых источников энергии, потребляемые объектом (в формате с %)","-"]
[null,null,"Класс устойчивости объекта проекта согласно системе КЛЕВЕР","-","Класс устойчивости проекта по системе КЛЕВЕР",null,"1. Выберите вариант из списка\n2. В прилагаемом подтверждающем документе отметьте данный пункт и прокомментируйте, почему вы считаете, что объект соответствует выбранному уровню (вложите копию полученного сертификата / отметьте способ получения результатов)\n3. Если класс устойчивости объекта не отражается, введите 0","-"]
[null,null,"Проект предполагает использование инновационных технологий согласно перечню","да/нет",null,"Список технологий","1. Выберите вариант из списка\n2. В выпадающем списке слева необходимо выбрать соответствующую инновационную технологию (◄◄◄)","-"]
[null,null,"Энергетика"]
[null,null,"Выручка проекта при выходе на целевую загрузку","млрд руб., без НДС, в год",null,null,"-","-"]
[null,null,"Объём генерации электроэнергии, при выходе проекта на целевую загрузку, в год","МВт*ч в год",null,null,"Необходимо заполнить информацию  по одному из двух пунктов: по текущему или следующему за ним","-"]
[null,null,"Протяженность линий электропередач для поставки электроэнергии, строящихся/модернизирующихся проектом, при выходе на целевую загрузку, в год","км ",null,null,"Необходимо заполнить информацию  по одному из двух пунктов: по текущему или предыдущему","-"]
[null,null,"Количество потребителей электроэнергии, генерируемой и (или) поставляемой проектом, при выходе на целевую загрузку, в год","чел.",null,null,"-","-"]
[null,null,"Класс устойчивости объекта проекта согласно системе КЛЕВЕР","-","Класс устойчивости проекта по системе КЛЕВЕР",null,"1. Выберите вариант из списка\n2. В прилагаемом подтверждающем документе отметьте данный пункт и прокомментируйте, почему вы считаете, что объект соответствует выбранному уровню (вложите копию полученного сертификата / отметьте способ получения результатов)\n3. Если класс устойчивости объекта не отражается, введите 0","-"]
[null,null,"Процент потерь (= ( энергия поданная в сеть - энергия потребленная потребителями)/энергия поданная в сеть*100%)","%",null,null,"Необходимо заполнить информацию  по одному из двух пунктов: по текущему или предыдущему (в формате с %)","-"]
[null,null,"Доля возобновляемых источников энергии в общем объёме потребления объектом","%",null,null,"В поле для уточнений необходимо указать виды возобновляемых источников энергии, потребляемые объектом (в формате с %)","-"]
[null,null,"Проект предполагает использование инновационных технологий согласно перечню","да/нет",null,"Список технологий","1. Выберите вариант из списка\n2. В выпадающем списке слева необходимо выбрать соответствующую инновационную технологию (◄◄◄)","-"]
[]
[]
[null,"Технологическое лидерство"]
[]
[null,null,"Вопросы","Ед. измерения","Поле для заполнения","поле для уточнений","Комментарии","Пояснения","Проверено и подтверждено"]
[null,null,"В каких сферах предполагается реализация Вашего проекта?","Производство"]
[]
[null,null,"Производство"]
[null,null,"Выручка проекта при выходе на целевую загрузку","млрд руб., без НДС, в год",null,null,"-","-"]
[null,null,"Доля возобновляемых источников энергии в общем объёме потребления объектом","%",null,null,"В поле для уточнений необходимо указать виды возобновляемых источников энергии, потребляемые объектом (в формате с %)","-"]
[null,null,"Класс устойчивости объекта проекта согласно системе КЛЕВЕР","-","Класс устойчивости проекта по системе КЛЕВЕР",null,"1. Выберите вариант из списка\n2. В прилагаемом подтверждающем документе отметьте данный пункт и прокомментируйте, почему вы считаете, что объект соответствует выбранному уровню (вложите копию полученного сертификата / отметьте способ получения результатов)\n3. Если класс устойчивости объекта не отражается, введите 0","-"]
[null,null,"Продукция проекта предполагает работу с использованием инновационных технологий","да/нет",null,"Список технологий","1. Выберите вариант из списка\n2. В выпадающем списке слева необходимо выбрать соответствующую инновационную технологию (◄◄◄)","-"]
[null,null,"Проект предполагает использование инновационных технологий согласно перечню","да/нет",null,"Список технологий","1. Выберите вариант из списка\n2. В выпадающем списке слева необходимо выбрать соответствующую инновационную технологию (◄◄◄)","-"]
[null,null,"Проект предполагает сотрудничество с высшими образовательными учреждениями и исследовательскими институтами, в том числе иностранными","да/нет",null,null,"1. Выберите вариант из списка\n2. В поле для уточнений необходимо указать учреждение(я)","-"]
[null,null,"Проект реализуется в моногороде","да/нет",null,"Список моногородов","1. Выберите вариант из списка\n2. В выпадающем списке слева необходимо выбрать соответствующий моногород (◄◄◄)","-"]

{"sheet":"Сбор данных","index":1,"n_rows":7,"n_cols":179,"rows_kept":7,"cut":false,"hidden":true,"merged":[[2,172,2,178],[1,172,1,178],[2,1,2,9],[2,13,2,27],[1,1,1,27],[2,72,2,77],[2,78,2,83],[2,98,2,102],[2,103,2,106],[2,164,2,171],[1,152,1,171],[2,28,2,33],[2,84,2,91],[1,66,1,91],[2,92,2,97],[2,158,2,163],[2,152,2,157],[2,138,2,144],[2,145,2,151],[2,107,2,112],[2,113,2,117],[1,107,1,124],[2,118,2,124],[2,132,2,137],[1,125,1,151],[2,125,2,131],[2,66,2,71],[1,92,1,106],[1,28,1,38],[2,34,2,38],[1,39,1,65],[2,39,2,44],[2,45,2,50],[2,51,2,57],[2,58,2,65]]}
[]
[null,"Общие критерии",null,null,null,null,null,null,null,null,null,null,null,null,null,null,null,null,null,null,null,null,null,null,null,null,null,null,"Разработка и применение искусственного интеллекта",null,null,null,null,null,null,null,null,null,null,"Развитие Арктики и Дальнего Востока",null,null,null,null,null,null,null,null,null,null,null,null,null,null,null,null,null,null,null,null,null,null,null,null,null,null,"Международная кооперация",null,null,null,null,null,null,null,null,null,null,null,null,null,null,null,null,null,null,null,null,null,null,null,null,null,"Образование XXI века",null,null,null,null,null,null,null,null,null,null,null,null,null,null,"Здоровье нации",null,null,null,null,null,null,null,null,null,null,null,null,null,null,null,null,null,"Качественная городская среда",null,null,null,null,null,null,null,null,null,null,null,null,null,null,null,null,null,null,null,null,null,null,null,null,null,null,"Инфраструктурный каркас страны",null,null,null,null,null,null,null,null,null,null,null,null,null,null,null,null,null,null,null,"Технологическое лидерство"]
[null,"Общие данные по проекту",null,null,null,null,null,null,null,null,null,null,null,"Общие вопросы для расчёта",null,null,null,null,null,null,null,null,null,null,null,null,null,null,"Создание и эксплуатация мощностей для работы ИИ",null,null,null,null,null,"Разработка продуктов в области ИИ",null,null,null,null,"Транспортная инфраструктура для грузоперевозок",null,null,null,null,null,"Транспортная инфраструктура для пассажирских перевозок",null,null,null,null,null,"Производство",null,null,null,null,null,null,"Энергетика",null,null,null,null,null,null,null,"Транспортная инфраструктура для грузоперевозок",null,null,null,null,null,"Транспортная инфраструктура для пассажирских перевозок",null,null,null,null,null,"Производство",null,null,null,null,null,"Энергетика",null,null,null,null,null,null,null,"Высшее образование / СПО",null,null,null,null,null,"Среднее общее образование",null,null,null,null,"Онлайн-платформы",null,null,null,"Медицинские учреждения",null,null,null,null,null,"Производство медицинских препаратов",null,null,null,null,"Производство медицинского оборудования",null,null,null,null,null,null,"Жилищное строительство",null,null,null,null,null,null,"Транспортная инфраструктура",null,null,null,null,null,"Жилищно-коммунальная инфраструктура",null,null,null,null,null,null,"Сохранение исторического облика города",null,null,null,null,null,null,"Транспортная инфраструктура для грузоперевозок",null,null,null,null,null,"Транспортная инфраструктура для пассажирских перевозок",null,null,null,null,null,"Энергетика",null,null,null,null,null,null,null,"Производство"]
[null,"Наименование Проекта","Страна реализации проекта","Регион реализации Проекта","Инициаторы Проекта","ИНН Инициатора Проекта ","Финансирующая организация","Подрядчик","Участие в национальном проекте","Стадия реализации Проекта","Описание проекта","Дата начала реализации Проекта","Дата ввода в эксплуатацию","Капитальные вложения в проект","Объём привлечения иностранного финансирования","Объём капитальных вложений, финансируемых за счёт частных инвестиций","Доля отечественного оборудования","Наличие юридических лиц - нерезидентов в финансировании и управлении проектом","Базовый год","Дата выхода на целевую загрузку","Срок окупаемости Проекта ","Срок окупаемости для бюджетов всех уровней","Создание новых рабочих мест","Проект реализуется в рамках международной кооперации","Регистрация на одной из территорий с преференциальным режимом","Доля выручки от международного бизнеса","Форма для заполнения 1","Форма для заполнения 2","Выручка проекта, при выходе на целевую загрузку, за год","Максимальная мощность создаваемой в рамках проекта инфраструктуры ","Максимальная производительность создаваемой в рамках проекта инфраструктуры ","Доля возобновляемых источников энергии в общем объёме потребления объектом","Проект предполагает сотрудничество с высшими образовательными учреждениями и исследовательскими институтами, в том числе иностранными","Проект предполагает использование инновационных технологий согласно перечню","Выручка проекта, при выходе на целевую загрузку, за год","Количество активных пользователей продукта, при выходе на целевую загрузку, в год","Потенциальная экономия на снижении затрат от внедрения продуктов проекта в области ИИ, при выходе на целевую загрузку, в год","Оценка F1 (точность) по результатам работы продукта, созданного в области ИИ","Проект предполагает сотрудничество с высшими образовательными учреждениями и исследовательскими институтами, в том числе иностранными","Выручка проекта, при выходе на целевую загрузку, за год","Пропускная способность объекта проекта","Средняя загрузка транспортного объекта","Доля возобновляемых источников энергии в общем объёме потребления объектом","Класс устойчивости объекта проекта согласно системе КЛЕВЕР","Проект предполагает использование инновационных технологий согласно перечню","Выручка проекта, при выходе на целевую загрузку, за год","Пропускная способность объекта проекта","Средняя загрузка транспортного объекта","Доля возобновляемых источников энергии в общем объёме потребления объектом","Класс устойчивости объекта проекта согласно системе КЛЕВЕР","Проект предполагает использование инновационных технологий согласно перечню","Выручка проекта, при выходе на целевую загрузку, за год","Доля возобновляемых источников энергии в общем объёме потребления объектом","Класс устойчивости объекта проекта согласно системе КЛЕВЕР","Проект предполагает использование инновационных технологий согласно перечню","Продукция проекта предполагает работу с использованием инновационных технологий","Проект предполагает сотрудничество с высшими обращовательными учреждениями и исследовательскими институтами, в том числе иностанными","Проект реализуется в моногороде","Выручка проекта, при выходе на целевую загрузку, за год","Объём генерации электроэнергии при выходе проекта на полную мощность в год","Протяженность линий электропередач для поставки электроэнергии в регионы Арктики и Дальнего Востока, строящихся/модернизирующихся проектом, при выходе на целевую загрузку,  в год","Количество потребителей электроэнергии, генерируемой (или) поставляемой в регионы Арктики и Дальнего Востока проектом, при выходе на целевую загрузку, в год","Класс устойчивости объекта проекта согласно системе КЛЕВЕР","Процент потреь","Доля возобновляемых источников энергии в общем объёме потребления объектом","Проект предполагает использование инновационных технологий согласно перечню","Выручка проекта, при выходе на целевую загрузку, за год","Пропускная способность объекта проекта","Средняя загрузка транспортного объекта","Доля возобновляемых источников энергии в общем объёме потребления объектом","Класс устойчивости объекта проекта согласно системе КЛЕВЕР","Проект предполагает использование инновационных технологий согласно перечню","Выручка проекта, при выходе на целевую загрузку, за год","Пропускная способность объекта проекта","Средняя загрузка транспортного объекта","Доля возобновляемых источников энергии в общем объёме потребления объектом","Класс устойчивости объекта проекта согласно системе КЛЕВЕР","Проект предполагает использование инновационных технологий согласно перечню","Выручка проекта, при выходе на целевую загрузку, за год","Доля возобновляемых источников энергии в общем объёме потребления объектом","Класс устойчивости объекта проекта согласно системе КЛЕВЕР","Проект предполагает использование инновационных технологий согласно перечню","Продукция проекта предполагает работу с использованием инновационных технологий","Проект предполагает сотрудничество с высшими обращовательными учреждениями и исследовательскими институтами, в том числе иностанными","Выручка проекта, при выходе на целевую загрузку, за год","Объём генерации электроэнергии при выходе проекта на полную мощность в год","Протяженность линий электропередач для поставки электроэнергии в регионы Арктики и Дальнего Востока, строящихся/модернизирующихся проектом, при выходе на целевую загрузку,  в год","Количество потребителей электроэнергии, генерируемой (или) поставляемой в регионы Арктики и Дальнего Востока проектом, при выходе на целевую загрузку, в год","Класс устойчивости объекта проекта согласно системе КЛЕВЕР","Процент потреь","Доля возобновляемых источников энергии в общем объёме потребления объектом","Проект предполагает использование инновационных технологий согласно перечню","Выручка проекта при выходе на целевую загрузку","Число студентов при выходе на целевую загрузку в год","Количество компьютеров, которыми оснащён проект, при выходе на целевую загрузку","Количество получателей бесплатных услуг при выходе проекта на целевую загрузку, в год","Класс устойчивости объекта проекта согласно системе КЛЕВЕР","Наличие в программе (или факультативно) дисциплин в области развития и применения инновационных технологий, а также инфраструктуры их преподавания","Число учеников при выходе на целевую загрузку, в год","Количество компьютеров, которыми оснащён проект, при выходе на целевую загрузку","Класс устойчивости объекта проекта согласно системе КЛЕВЕР","Проект предполагает сотрудничество с высшими образовательными учреждениями и исследовательскими институтами, в том числе иностранными","Наличие в программе (или факультативно) дисциплин в области развития и применения инновационных технологий, а также инфраструктуры их преподавания","Выручка проекта при выходе на целевую загрузку","Число студентов при выходе на целевую загрузку в год","Количество бюджетных мест при выходе проекта на целевую загрузку","Наличие в программе (или факультативно) дисциплин в области развития и применения инновационных технологий, а также инфраструктуры их преподавания","Выручка проекта при выходе на целевую загрузку","Количество пациентов при выходе на целевую загрузку, в год","Количество получателей бесплатных услуг при выходе проекта на целевую загрузку, в год","Класс устойчивости объекта проекта согласно системе КЛЕВЕР","Использование дорогостоящего современного оборудования","Проект предполагает сотрудничество с высшими образовательными учреждениями и исследовательскими институтами, в том числе иностранными","Выручка проекта при выходе на целевую загрузку","Класс устойчивости объекта проекта согласно системе КЛЕВЕР","Доля возобновляемых источников энергии в общем объёме потребления объектом","Проект предполагает использование инновационных технологий согласно перечню","Проект предполагает сотрудничество с высшими образовательными учреждениями и исследовательскими институтами, в том числе иностранными","Выручка проекта при выходе на целевую загрузку","Класс устойчивости объекта проекта согласно системе КЛЕВЕР","Доля возобновляемых источников энергии в общем объёме потребления объектом","Проект предполагает использование инновационных технологий согласно перечню","Продукция проекта предполагает работу с использованием инновационных технологий","Проект предполагает сотрудничество с высшими образовательными учреждениями и исследовательскими институтами, в том числе иностранными","Проект реализуется в моногороде","Выручка проекта при выходе на целевую загрузку","Площадь застройки объекта","Плотность застройки объекта","Количество потенциальных жителей","Класс устойчивости объекта проекта согласно системе КЛЕВЕР","Доля возобновляемых источников энергии в общем объёме потребления объектом","Проект предполагает использование инновационных технологий согласно перечню","Выручка проекта при выходе на целевую загрузку","Пропускная способность транспортного объекта","Средняя загрузка транспортного объекта за период от начала операционной деятельности до выхода проекта на окупаемость, в год","Класс устойчивости объекта проекта согласно системе КЛЕВЕР","Доля возобновляемых источников энергии в общем объёме потребления объектом","Проект предполагает использование инновационных технологий согласно перечню","Выручка проекта при выходе на целевую загрузку, за год","Количество активных пользователей, при выходе проекта на целевую загрузку, в год","Протяжённость инженерных сетей, строимых (модернизируемых) объектом","Мощность создаваемого (модернизируемого) объекта инфраструктуры в сфере ЖКХ","Класс устойчивости объекта проекта согласно системе КЛЕВЕР","Доля возобновляемых источников энергии в общем объёме потребления объектом","Проект предполагает использование инновационных технологий согласно перечню","Выручка проекта при выходе на целевую загрузку","Площадь застройки объекта на месте расположения существующего здания/сооружения культурно-исторического характера","Общая площадь восстановленных или адаптированных зданий и сооружений","Проект предполагает сотрудничество с высшими образовательными учреждениями и исследовательскими институтами, в том числе иностранными","Значения проекта для культурно-исторического наследия (региональное / федеральное / ЮНЕСКО)","Проект предполагает использование инновационных технологий согласно перечню","Проект предполагает адаптацию объектов под современное использование","Выручка проекта, при выходе на целевую загрузку, за год","Пропускная способность объекта проекта","Средняя загрузка транспортного объекта","Доля возобновляемых источников энергии в общем объёме потребления объектом","Класс устойчивости объекта проекта согласно системе КЛЕВЕР","Проект предполагает использование инновационных технологий согласно перечню","Выручка проекта, при выходе на целевую загрузку, за год","Пропускная способность объекта проекта","Средняя загрузка транспортного объекта","Доля возобновляемых источников энергии в общем объёме потребления объектом","Класс устойчивости объекта проекта согласно системе КЛЕВЕР","Проект предполагает использование инновационных технологий согласно перечню","Выручка проекта, при выходе на целевую загрузку, за год","Объём генерации электроэнергии при выходе проекта на полную мощность в год","Протяженность линий электропередач для поставки электроэнергии в регионы Арктики и Дальнего Востока, строящихся/модернизирующихся проектом, при выходе на целевую загрузку,  в год","Количество потребителей электроэнергии, генерируемой (или) поставляемой в регионы Арктики и Дальнего Востока проектом, при выходе на целевую загрузку, в год","Класс устойчивости объекта проекта согласно системе КЛЕВЕР","Процент потреь","Доля возобновляемых источников энергии в общем объёме потребления объектом","Проект предполагает использование инновационных технологий согласно перечню","Выручка проекта, при выходе на целевую загрузку, за год","Доля возобновляемых источников энергии в общем объёме потребления объектом","Класс устойчивости объекта проекта согласно системе КЛЕВЕР","Проект предполагает использование инновационных технологий согласно перечню","Продукция проекта предполагает работу с использованием инновационных технологий","Проект предполагает сотрудничество с высшими обращовательными учреждениями и исследовательскими институтами, в том числе иностанными","Проект реализуется в моногороде"]
[null,{"$f":"IF(Анкета!E$19=\"\",\"\",Анкета!E$19)","v":""},{"$f":"IF(Анкета!E$20=\"\",\"\",Анкета!E$20)","v":"Страны-члены ООН (в алфавитном порядке)"},{"$f":"IF(Анкета!E$21=\"\",\"\",Анкета!E$21)","v":"Список регионов РФ в алфавитном порядке"},{"$f":"IF(Анкета!E$22=\"\",\"\",Анкета!E$22)","v":""},{"$f":"IF(Анкета!E$23=\"\",\"\",Анкета!E$23)","v":""},{"$f":"IF(Анкета!E$24=\"\",\"\",Анкета!E$24)","v":""},{"$f":"IF(Анкета!E$25=\"\",\"\",Анкета!E$25)","v":""},{"$f":"IF(Анкета!E$26=\"\",\"\",Анкета!E$26)","v":""},{"$f":"IF(Анкета!E$32=\"\",\"\",Анкета!E$32)","v":"Стадии реализации проекта"},{"$f":"IF(Анкета!E$43=\"\",\"\",Анкета!E$43)","v":""},{"$f":"IF(Анкета!E$34=\"\",\"\",Анкета!E$34)","v":""},{"$f":"IF(Анкета!E$35=\"\",\"\",Анкета!E$35)","v":""},{"$f":"IF(Анкета!E$27=\"\",\"\",Анкета!E$27)","v":""},{"$f":"IF(Анкета!E$28=\"\",\"\",Анкета!E$28)","v":""},{"$f":"IF(Анкета!E$29=\"\",\"\",Анкета!E$29)","v":""},{"$f":"IF(Анкета!E$30=\"\",\"\",Анкета!E$30)","v":""},{"$f":"IF(Анкета!E$31=\"\",\"\",Анкета!E$31)","v":""},{"$f":"IF(Анкета!E$33=\"\",\"\",Анкета!E$33)","v":""},{"$f":"IF(Анкета!E$36=\"\",\"\",Анкета!E$36)","v":""},{"$f":"IF(Анкета!E$37=\"\",\"\",Анкета!E$37)","v":""},{"$f":"IF(Анкета!E$38=\"\",\"\",Анкета!E$38)","v":""},{"$f":"IF(Анкета!E$39=\"\",\"\",Анкета!E$39)","v":""},{"$f":"IF(Анкета!E$40=\"\",\"\",Анкета!E$40)","v":""},{"$f":"IF(Анкета!E$41=\"\",\"\",Анкета!E$41)","v":""},{"$f":"IF(Анкета!E$42=\"\",\"\",Анкета!E$42)","v":""},"-","-",{"$f":"IF(Анкета!E$52=\"\",\"\",Анкета!E$52)","v":""},{"$f":"IF(Анкета!E$53=\"\",\"\",Анкета!E$53)","v":""},{"$f":"IF(Анкета!E$54=\"\",\"\",Анкета!E$54)","v":""},{"$f":"IF(Анкета!E$55=\"\",\"\",Анкета!E$55)","v":""},{"$f":"IF(Анкета!E$56=\"\",\"\",Анкета!E$56)","v":""},{"$f":"IF(Анкета!E$57=\"\",\"\",Анкета!E$57)","v":""},{"$f":"IF(Анкета!E$59=\"\",\"\",Анкета!E$59)","v":""},{"$f":"IF(Анкета!E$60=\"\",\"\",Анкета!E$60)","v":""},{"$f":"IF(Анкета!E$61=\"\",\"\",Анкета!E$61)","v":""},{"$f":"IF(Анкета!E$62=\"\",\"\",Анкета!E$62)","v":""},{"$f":"IF(Анкета!E$63=\"\",\"\",Анкета!E$63)","v":""},{"$f":"IF(Анкета!E$72=\"\",\"\",Анкета!E$72)","v":""},{"$f":"IF(Анкета!E$73=\"\",\"\",Анкета!E$73)","v":""},{"$f":"IF(Анкета!E$74=\"\",\"\",Анкета!E$74)","v":""},{"$f":"IF(Анкета!E$75=\"\",\"\",Анкета!E$75)","v":""},{"$f":"IF(Анкета!E$76=Tech!$Y$2,\"\",Анкета!E$76)","v":""},{"$f":"IF(Анкета!E$77=\"\",\"\",Анкета!E$77)","v":""},{"$f":"IF(Анкета!E$79=\"\",\"\",Анкета!E$79)","v":""},{"$f":"IF(Анкета!E$80=\"\",\"\",Анкета!E$80)","v":""},{"$f":"IF(Анкета!E$81=\"\",\"\",Анкета!E$81)","v":""},{"$f":"IF(Анкета!E$82=\"\",\"\",Анкета!E$82)","v":""},{"$f":"IF(Анкета!E$83=Tech!$Y$2,\"\",Анкета!E$83)","v":""},{"$f":"IF(Анкета!E$84=\"\",\"\",Анкета!E$84)","v":""},{"$f":"IF(Анкета!E$86=\"\",\"\",Анкета!E$86)","v":""},{"$f":"IF(Анкета!E$87=\"\",\"\",Анкета!E$87)","v":""},{"$f":"IF(Анкета!E$88=Tech!$Y$2,\"\",Анкета!E$88)","v":""},{"$f":"IF(Анкета!E$89=\"\",\"\",Анкета!E$89)","v":""},{"$f":"IF(Анкета!E$90=\"\",\"\",Анкета!E$90)","v":""},{"$f":"IF(Анкета!E$91=\"\",\"\",Анкета!E$91)","v":""},{"$f":"IF(Анкета!E$92=\"\",\"\",Анкета!E$92)","v":""},{"$f":"IF(Анкета!E$94=\"\",\"\",Анкета!E$94)","v":""},{"$f":"IF(Анкета!E$95=\"\",\"\",Анкета!E$95)","v":""},{"$f":"IF(Анкета!E$96=\"\",\"\",Анкета!E$96)","v":""},{"$f":"IF(Анкета!E$97=\"\",\"\",Анкета!E$97)","v":""},{"$f":"IF(Анкета!E$98=Tech!$Y$2,\"\",Анкета!E$98)","v":""},{"$f":"IF(Анкета!E$99=\"\",\"\",Анкета!E$99)","v":""},{"$f":"IF(Анкета!E$100=\"\",\"\",Анкета!E$100)","v":""},{"$f":"IF(Анкета!E$101=\"\",\"\",Анкета!E$101)","v":""},{"$f":"IF(Анкета!E$110=\"\",\"\",Анкета!E$110)","v":""},{"$f":"IF(Анкета!E$111=\"\",\"\",Анкета!E$111)","v":""},{"$f":"IF(Анкета!E$112=\"\",\"\",Анкета!E$112)","v":""},{"$f":"IF(Анкета!E$113=\"\",\"\",Анкета!E$113)","v":""},{"$f":"IF(Анкета!E$114=Tech!$Y$2,\"\",Анкета!E$114)","v":""},{"$f":"IF(Анкета!E$115=\"\",\"\",Анкета!E$115)","v":""},{"$f":"IF(Анкета!E$117=\"\",\"\",Анкета!E$117)","v":""},{"$f":"IF(Анкета!E$118=\"\",\"\",Анкета!E$118)","v":""},{"$f":"IF(Анкета!E$119=\"\",\"\",Анкета!E$119)","v":""},{"$f":"IF(Анкета!E$120=\"\",\"\",Анкета!E$120)","v":""},{"$f":"IF(Анкета!E$121=Tech!$Y$2,\"\",Анкета!E$121)","v":""},{"$f":"IF(Анкета!E$122=\"\",\"\",Анкета!E$122)","v":""},{"$f":"IF(Анкета!E$124=\"\",\"\",Анкета!E$124)","v":""},{"$f":"IF(Анкета!E$125=\"\",\"\",Анкета!E$125)","v":""},{"$f":"IF(Анкета!E$126=Tech!$Y$2,\"\",Анкета!E$126)","v":""},{"$f":"IF(Анкета!E$127=\"\",\"\",Анкета!E$127)","v":""},{"$f":"IF(Анкета!E$128=\"\",\"\",Анкета!E$128)","v":""},{"$f":"IF(Анкета!E$129=\"\",\"\",Анкета!E$129)","v":""},{"$f":"IF(Анкета!E$131=\"\",\"\",Анкета!E$131)","v":""},{"$f":"IF(Анкета!E$132=\"\",\"\",Анкета!E$132)","v":""},{"$f":"IF(Анкета!E$133=\"\",\"\",Анкета!E$133)","v":""},{"$f":"IF(Анкета!E$134=\"\",\"\",Анкета!E$134)","v":""},{"$f":"IF(Анкета!E$135=Tech!$Y$2,\"\",Анкета!E$135)","v":""},{"$f":"IF(Анкета!E$136=\"\",\"\",Анкета!E$136)","v":""},{"$f":"IF(Анкета!E$137=\"\",\"\",Анкета!E$137)","v":""},{"$f":"IF(Анкета!E$138=\"\",\"\",Анкета!E$138)","v":""},{"$f":"IF(Анкета!E$147=\"\",\"\",Анкета!E$147)","v":""},{"$f":"IF(Анкета!E$148=\"\",\"\",Анкета!E$148)","v":""},{"$f":"IF(Анкета!E$149=\"\",\"\",Анкета!E$149)","v":""},{"$f":"IF(Анкета!E$150=\"\",\"\",Анкета!E$150)","v":""},{"$f":"IF(Анкета!E$151=Tech!$Y$2,\"\",Анкета!E$151)","v":""},{"$f":"IF(Анкета!E$152=\"\",\"\",Анкета!E$152)","v":""},{"$f":"IF(Анкета!E$154=\"\",\"\",Анкета!E$154)","v":""},{"$f":"IF(Анкета!E$155=\"\",\"\",Анкета!E$155)","v":""},{"$f":"IF(Анкета!E$156=Tech!$Y$2,\"\",Анкета!E$156)","v":""},{"$f":"IF(Анкета!E$157=\"\",\"\",Анкета!E$157)","v":""},{"$f":"IF(Анкета!E$158=\"\",\"\",Анкета!E$158)","v":""},{"$f":"IF(Анкета!E$160=\"\",\"\",Анкета!E$160)","v":""},{"$f":"IF(Анкета!E$161=\"\",\"\",Анкета!E$161)","v":""},{"$f":"IF(Анкета!E$162=\"\",\"\",Анкета!E$162)","v":""},{"$f":"IF(Анкета!E$163=\"\",\"\",Анкета!E$163)","v":""},{"$f":"IF(Анкета!E$172=\"\",\"\",Анкета!E$172)","v":""},{"$f":"IF(Анкета!E$173=\"\",\"\",Анкета!E$173)","v":""},{"$f":"IF(Анкета!E$174=\"\",\"\",Анкета!E$174)","v":""},{"$f":"IF(Анкета!E$175=Tech!$Y$2,\"\",Анкета!E$175)","v":""},{"$f":"IF(Анкета!E$176=\"\",\"\",Анкета!E$176)","v":""},{"$f":"IF(Анкета!E$177=\"\",\"\",Анкета!E$177)","v":""},{"$f":"IF(Анкета!E$179=\"\",\"\",Анкета!E$179)","v":""},{"$f":"IF(Анкета!E$180=Tech!$Y$2,\"\",Анкета!E$180)","v":""},{"$f":"IF(Анкета!E$181=\"\",\"\",Анкета!E$181)","v":""},{"$f":"IF(Анкета!E$182=\"\",\"\",Анкета!E$182)","v":""},{"$f":"IF(Анкета!E$183=\"\",\"\",Анкета!E$183)","v":""},{"$f":"IF(Анкета!E$185=\"\",\"\",Анкета!E$185)","v":""},{"$f":"IF(Анкета!E$186=Tech!$Y$2,\"\",Анкета!E$186)","v":""},{"$f":"IF(Анкета!E$187=\"\",\"\",Анкета!E$187)","v":""},{"$f":"IF(Анкета!E$188=\"\",\"\",Анкета!E$188)","v":""},{"$f":"IF(Анкета!E$189=\"\",\"\",Анкета!E$189)","v":""},{"$f":"IF(Анкета!E$190=\"\",\"\",Анкета!E$190)","v":""},{"$f":"IF(Анкета!E$191=\"\",\"\",Анкета!E$191)","v":""},{"$f":"IF(Анкета!E$200=\"\",\"\",Анкета!E$200)","v":""},{"$f":"IF(Анкета!E$201=\"\",\"\",Анкета!E$201)","v":""},{"$f":"IF(Анкета!E$202=\"\",\"\",Анкета!E$202)","v":""},{"$f":"IF(Анкета!E$203=\"\",\"\",Анкета!E$203)","v":""},{"$f":"IF(Анкета!E$204=Tech!$Y$2,\"\",Анкета!E$204)","v":""},{"$f":"IF(Анкета!E$205=\"\",\"\",Анкета!E$205)","v":""},{"$f":"IF(Анкета!E$206=\"\",\"\",Анкета!E$206)","v":""},{"$f":"IF(Анкета!E$208=\"\",\"\",Анкета!E$208)","v":""},{"$f":"IF(Анкета!E$209=\"\",\"\",Анкета!E$209)","v":""},{"$f":"IF(Анкета!E$210=\"\",\"\",Анкета!E$210)","v":""},{"$f":"IF(Анкета!E$211=Tech!$Y$2,\"\",Анкета!E$211)","v":""},{"$f":"IF(Анкета!E$212=\"\",\"\",Анкета!E$212)","v":""},{"$f":"IF(Анкета!E$213=\"\",\"\",Анкета!E$213)","v":""},{"$f":"IF(Анкета!E$215=\"\",\"\",Анкета!E$215)","v":""},{"$f":"IF(Анкета!E$216=\"\",\"\",Анкета!E$216)","v":""},{"$f":"IF(Анкета!E$217=\"\",\"\",Анкета!E$217)","v":""},{"$f":"IF(Анкета!E$218=\"\",\"\",Анкета!E$218)","v":""},{"$f":"IF(Анкета!E$219=Tech!$Y$2,\"\",Анкета!E$219)","v":""},{"$f":"IF(Анкета!E$220=\"\",\"\",Анкета!E$220)","v":""},{"$f":"IF(Анкета!E$221=\"\",\"\",Анкета!E$221)","v":""},{"$f":"IF(Анкета!E$223=\"\",\"\",Анкета!E$223)","v":""},{"$f":"IF(Анкета!E$224=\"\",\"\",Анкета!E$224)","v":""},{"$f":"IF(Анкета!E$225=\"\",\"\",Анкета!E$225)","v":""},{"$f":"IF(Анкета!E$226=\"\",\"\",Анкета!E$226)","v":""},{"$f":"IF(Анкета!E$227=\"\",\"\",Анкета!E$227)","v":""},{"$f":"IF(Анкета!E$228=\"\",\"\",Анкета!E$228)","v":""},{"$f":"IF(Анкета!E$229=\"\",\"\",Анкета!E$229)","v":""},{"$f":"IF(Анкета!E$238=\"\",\"\",Анкета!E$238)","v":""},{"$f":"IF(Анкета!E$239=\"\",\"\",Анкета!E$239)","v":""},{"$f":"IF(Анкета!E$240=\"\",\"\",Анкета!E$240)","v":""},{"$f":"IF(Анкета!E$241=\"\",\"\",Анкета!E$241)","v":""},{"$f":"IF(Анкета!E$242=Tech!$Y$2,\"\",Анкета!E$242)","v":""},{"$f":"IF(Анкета!E$243=\"\",\"\",Анкета!E$243)","v":""},{"$f":"IF(Анкета!E$245=\"\",\"\",Анкета!E$245)","v":""},{"$f":"IF(Анкета!E$246=\"\",\"\",Анкета!E$246)","v":""},{"$f":"IF(Анкета!E$247=\"\",\"\",Анкета!E$247)","v":""},{"$f":"IF(Анкета!E$248=\"\",\"\",Анкета!E$248)","v":""},{"$f":"IF(Анкета!E$249=Tech!$Y$2,\"\",Анкета!E$249)","v":""},{"$f":"IF(Анкета!E$250=\"\",\"\",Анкета!E$250)","v":""},{"$f":"IF(Анкета!E$252=\"\",\"\",Анкета!E$252)","v":""},{"$f":"IF(Анкета!E$253=\"\",\"\",Анкета!E$253)","v":""},{"$f":"IF(Анкета!E$254=\"\",\"\",Анкета!E$254)","v":""},{"$f":"IF(Анкета!E$255=\"\",\"\",Анкета!E$255)","v":""},{"$f":"IF(Анкета!E$256=Tech!$Y$2,\"\",Анкета!E$256)","v":""},{"$f":"IF(Анкета!E$257=\"\",\"\",Анкета!E$257)","v":""},{"$f":"IF(Анкета!E$258=\"\",\"\",Анкета!E$258)","v":""},{"$f":"IF(Анкета!E$259=\"\",\"\",Анкета!E$259)","v":""},{"$f":"IF(Анкета!E$268=\"\",\"\",Анкета!E$268)","v":""},{"$f":"IF(Анкета!E$269=\"\",\"\",Анкета!E$269)","v":""},{"$f":"IF(Анкета!E$270=Tech!$Y$2,\"\",Анкета!E$270)","v":""},{"$f":"IF(Анкета!E$271=\"\",\"\",Анкета!E$271)","v":""},{"$f":"IF(Анкета!E$272=\"\",\"\",Анкета!E$272)","v":""},{"$f":"IF(Анкета!E$273=\"\",\"\",Анкета!E$273)","v":""},{"$f":"IF(Анкета!E$274=\"\",\"\",Анкета!E$274)","v":""}]
[null,{"$f":"IF(Анкета!I$19=\"\",\"\",Анкета!I$19)","v":""},{"$f":"IF(Анкета!I$20=\"\",\"\",Анкета!I$20)","v":""},{"$f":"IF(Анкета!I$21=\"\",\"\",Анкета!I$21)","v":""},{"$f":"IF(Анкета!I$22=\"\",\"\",Анкета!I$22)","v":""},{"$f":"IF(Анкета!I$23=\"\",\"\",Анкета!I$23)","v":""},{"$f":"IF(Анкета!I$24=\"\",\"\",Анкета!I$24)","v":""},{"$f":"IF(Анкета!I$25=\"\",\"\",Анкета!I$25)","v":""},{"$f":"IF(Анкета!I$26=\"\",\"\",Анкета!I$26)","v":""},{"$f":"IF(Анкета!I$32=\"\",\"\",Анкета!I$32)","v":""},{"$f":"IF(Анкета!I$43=\"\",\"\",Анкета!I$43)","v":""},{"$f":"IF(Анкета!I$34=\"\",\"\",Анкета!I$34)","v":""},{"$f":"IF(Анкета!I$35=\"\",\"\",Анкета!I$35)","v":""},{"$f":"IF(Анкета!I$27=\"\",\"\",Анкета!I$27)","v":""},{"$f":"IF(Анкета!I$28=\"\",\"\",Анкета!I$28)","v":""},{"$f":"IF(Анкета!I$29=\"\",\"\",Анкета!I$29)","v":""},{"$f":"IF(Анкета!I$30=\"\",\"\",Анкета!I$30)","v":""},{"$f":"IF(Анкета!I$31=\"\",\"\",Анкета!I$31)","v":""},{"$f":"IF(Анкета!I$33=\"\",\"\",Анкета!I$33)","v":""},{"$f":"IF(Анкета!I$36=\"\",\"\",Анкета!I$36)","v":""},{"$f":"IF(Анкета!I$37=\"\",\"\",Анкета!I$37)","v":""},{"$f":"IF(Анкета!I$38=\"\",\"\",Анкета!I$38)","v":""},{"$f":"IF(Анкета!I$39=\"\",\"\",Анкета!I$39)","v":""},{"$f":"IF(Анкета!I$40=\"\",\"\",Анкета!I$40)","v":""},{"$f":"IF(Анкета!I$41=\"\",\"\",Анкета!I$41)","v":""},{"$f":"IF(Анкета!I$42=\"\",\"\",Анкета!I$42)","v":""},"-","-",{"$f":"IF(Анкета!I$52=\"\",\"\",Анкета!I$52)","v":""},{"$f":"IF(Анкета!I$53=\"\",\"\",Анкета!I$53)","v":""},{"$f":"IF(Анкета!I$54=\"\",\"\",Анкета!I$54)","v":""},{"$f":"IF(Анкета!I$55=\"\",\"\",Анкета!I$55)","v":""},{"$f":"IF(Анкета!I$56=\"\",\"\",Анкета!I$56)","v":""},{"$f":"IF(Анкета!I$57=\"\",\"\",Анкета!I$57)","v":""},{"$f":"IF(Анкета!I$59=\"\",\"\",Анкета!I$59)","v":""},{"$f":"IF(Анкета!I$60=\"\",\"\",Анкета!I$60)","v":""},{"$f":"IF(Анкета!I$61=\"\",\"\",Анкета!I$61)","v":""},{"$f":"IF(Анкета!I$62=\"\",\"\",Анкета!I$62)","v":""},{"$f":"IF(Анкета!I$63=\"\",\"\",Анкета!I$63)","v":""},{"$f":"IF(Анкета!I$72=\"\",\"\",Анкета!I$72)","v":""},{"$f":"IF(Анкета!I$73=\"\",\"\",Анкета!I$73)","v":""},{"$f":"IF(Анкета!I$74=\"\",\"\",Анкета!I$74)","v":""},{"$f":"IF(Анкета!I$75=\"\",\"\",Анкета!I$75)","v":""},{"$f":"IF(Анкета!I$76=\"\",\"\",Анкета!I$76)","v":""},{"$f":"IF(Анкета!I$77=\"\",\"\",Анкета!I$77)","v":""},{"$f":"IF(Анкета!I$79=\"\",\"\",Анкета!I$79)","v":""},{"$f":"IF(Анкета!I$80=\"\",\"\",Анкета!I$80)","v":""},{"$f":"IF(Анкета!I$81=\"\",\"\",Анкета!I$81)","v":""},{"$f":"IF(Анкета!I$82=\"\",\"\",Анкета!I$82)","v":""},{"$f":"IF(Анкета!I$83=\"\",\"\",Анкета!I$83)","v":""},{"$f":"IF(Анкета!I$84=\"\",\"\",Анкета!I$84)","v":""},{"$f":"IF(Анкета!I$86=\"\",\"\",Анкета!I$86)","v":""},{"$f":"IF(Анкета!I$87=\"\",\"\",Анкета!I$87)","v":""},{"$f":"IF(Анкета!I$88=\"\",\"\",Анкета!I$88)","v":""},{"$f":"IF(Анкета!I$89=\"\",\"\",Анкета!I$89)","v":""},{"$f":"IF(Анкета!I$90=\"\",\"\",Анкета!I$90)","v":""},{"$f":"IF(Анкета!I$91=\"\",\"\",Анкета!I$91)","v":""},{"$f":"IF(Анкета!I$92=\"\",\"\",Анкета!I$92)","v":""},{"$f":"IF(Анкета!I$94=\"\",\"\",Анкета!I$94)","v":""},{"$f":"IF(Анкета!I$95=\"\",\"\",Анкета!I$95)","v":""},{"$f":"IF(Анкета!I$96=\"\",\"\",Анкета!I$96)","v":""},{"$f":"IF(Анкета!I$97=\"\",\"\",Анкета!I$97)","v":""},{"$f":"IF(Анкета!I$98=\"\",\"\",Анкета!I$98)","v":""},{"$f":"IF(Анкета!I$99=\"\",\"\",Анкета!I$99)","v":""},{"$f":"IF(Анкета!I$100=\"\",\"\",Анкета!I$100)","v":""},{"$f":"IF(Анкета!I$101=\"\",\"\",Анкета!I$101)","v":""},{"$f":"IF(Анкета!I$110=\"\",\"\",Анкета!I$110)","v":""},{"$f":"IF(Анкета!I$111=\"\",\"\",Анкета!I$111)","v":""},{"$f":"IF(Анкета!I$112=\"\",\"\",Анкета!I$112)","v":""},{"$f":"IF(Анкета!I$113=\"\",\"\",Анкета!I$113)","v":""},{"$f":"IF(Анкета!I$114=\"\",\"\",Анкета!I$114)","v":""},{"$f":"IF(Анкета!I$115=\"\",\"\",Анкета!I$115)","v":""},{"$f":"IF(Анкета!I$117=\"\",\"\",Анкета!I$117)","v":""},{"$f":"IF(Анкета!I$118=\"\",\"\",Анкета!I$118)","v":""},{"$f":"IF(Анкета!I$119=\"\",\"\",Анкета!I$119)","v":""},{"$f":"IF(Анкета!I$120=\"\",\"\",Анкета!I$120)","v":""},{"$f":"IF(Анкета!I$121=\"\",\"\",Анкета!I$121)","v":""},{"$f":"IF(Анкета!I$122=\"\",\"\",Анкета!I$122)","v":""},{"$f":"IF(Анкета!I$124=\"\",\"\",Анкета!I$124)","v":""},{"$f":"IF(Анкета!I$125=\"\",\"\",Анкета!I$125)","v":""},{"$f":"IF(Анкета!I$126=\"\",\"\",Анкета!I$126)","v":""},{"$f":"IF(Анкета!I$127=\"\",\"\",Анкета!I$127)","v":""},{"$f":"IF(Анкета!I$128=\"\",\"\",Анкета!I$128)","v":""},{"$f":"IF(Анкета!I$129=\"\",\"\",Анкета!I$129)","v":""},{"$f":"IF(Анкета!I$131=\"\",\"\",Анкета!I$131)","v":""},{"$f":"IF(Анкета!I$132=\"\",\"\",Анкета!I$132)","v":""},{"$f":"IF(Анкета!I$133=\"\",\"\",Анкета!I$133)","v":""},{"$f":"IF(Анкета!I$134=\"\",\"\",Анкета!I$134)","v":""},{"$f":"IF(Анкета!I$135=\"\",\"\",Анкета!I$135)","v":""},{"$f":"IF(Анкета!I$136=\"\",\"\",Анкета!I$136)","v":""},{"$f":"IF(Анкета!I$137=\"\",\"\",Анкета!I$137)","v":""},{"$f":"IF(Анкета!I$138=\"\",\"\",Анкета!I$138)","v":""},{"$f":"IF(Анкета!I$147=\"\",\"\",Анкета!I$147)","v":""},{"$f":"IF(Анкета!I$148=\"\",\"\",Анкета!I$148)","v":""},{"$f":"IF(Анкета!I$149=\"\",\"\",Анкета!I$149)","v":""},{"$f":"IF(Анкета!I$150=\"\",\"\",Анкета!I$150)","v":""},{"$f":"IF(Анкета!I$151=\"\",\"\",Анкета!I$151)","v":""},{"$f":"IF(Анкета!I$152=\"\",\"\",Анкета!I$152)","v":""},{"$f":"IF(Анкета!I$154=\"\",\"\",Анкета!I$154)","v":""},{"$f":"IF(Анкета!I$155=\"\",\"\",Анкета!I$155)","v":""},{"$f":"IF(Анкета!I$156=\"\",\"\",Анкета!I$156)","v":""},{"$f":"IF(Анкета!I$157=\"\",\"\",Анкета!I$157)","v":""},{"$f":"IF(Анкета!I$158=\"\",\"\",Анкета!I$158)","v":""},{"$f":"IF(Анкета!I$160=\"\",\"\",Анкета!I$160)","v":""},{"$f":"IF(Анкета!I$161=\"\",\"\",Анкета!I$161)","v":""},{"$f":"IF(Анкета!I$162=\"\",\"\",Анкета!I$162)","v":""},{"$f":"IF(Анкета!I$163=\"\",\"\",Анкета!I$163)","v":""},{"$f":"IF(Анкета!I$172=\"\",\"\",Анкета!I$172)","v":""},{"$f":"IF(Анкета!I$173=\"\",\"\",Анкета!I$173)","v":""},{"$f":"IF(Анкета!I$174=\"\",\"\",Анкета!I$174)","v":""},{"$f":"IF(Анкета!I$175=\"\",\"\",Анкета!I$175)","v":""},{"$f":"IF(Анкета!I$176=\"\",\"\",Анкета!I$176)","v":""},{"$f":"IF(Анкета!I$177=\"\",\"\",Анкета!I$177)","v":""},{"$f":"IF(Анкета!I$179=\"\",\"\",Анкета!I$179)","v":""},{"$f":"IF(Анкета!I$180=\"\",\"\",Анкета!I$180)","v":""},{"$f":"IF(Анкета!I$181=\"\",\"\",Анкета!I$181)","v":""},{"$f":"IF(Анкета!I$182=\"\",\"\",Анкета!I$182)","v":""},{"$f":"IF(Анкета!I$183=\"\",\"\",Анкета!I$183)","v":""},{"$f":"IF(Анкета!I$185=\"\",\"\",Анкета!I$185)","v":""},{"$f":"IF(Анкета!I$186=\"\",\"\",Анкета!I$186)","v":""},{"$f":"IF(Анкета!I$187=\"\",\"\",Анкета!I$187)","v":""},{"$f":"IF(Анкета!I$188=\"\",\"\",Анкета!I$188)","v":""},{"$f":"IF(Анкета!I$189=\"\",\"\",Анкета!I$189)","v":""},{"$f":"IF(Анкета!I$190=\"\",\"\",Анкета!I$190)","v":""},{"$f":"IF(Анкета!I$191=\"\",\"\",Анкета!I$191)","v":""},{"$f":"IF(Анкета!I$200=\"\",\"\",Анкета!I$200)","v":""},{"$f":"IF(Анкета!I$201=\"\",\"\",Анкета!I$201)","v":""},{"$f":"IF(Анкета!I$202=\"\",\"\",Анкета!I$202)","v":""},{"$f":"IF(Анкета!I$203=\"\",\"\",Анкета!I$203)","v":""},{"$f":"IF(Анкета!I$204=\"\",\"\",Анкета!I$204)","v":""},{"$f":"IF(Анкета!I$205=\"\",\"\",Анкета!I$205)","v":""},{"$f":"IF(Анкета!I$206=\"\",\"\",Анкета!I$206)","v":""},{"$f":"IF(Анкета!I$208=\"\",\"\",Анкета!I$208)","v":""},{"$f":"IF(Анкета!I$209=\"\",\"\",Анкета!I$209)","v":""},{"$f":"IF(Анкета!I$210=\"\",\"\",Анкета!I$210)","v":""},{"$f":"IF(Анкета!I$211=\"\",\"\",Анкета!I$211)","v":""},{"$f":"IF(Анкета!I$212=\"\",\"\",Анкета!I$212)","v":""},{"$f":"IF(Анкета!I$213=\"\",\"\",Анкета!I$213)","v":""},{"$f":"IF(Анкета!I$215=\"\",\"\",Анкета!I$215)","v":""},{"$f":"IF(Анкета!I$216=\"\",\"\",Анкета!I$216)","v":""},{"$f":"IF(Анкета!I$217=\"\",\"\",Анкета!I$217)","v":""},{"$f":"IF(Анкета!I$218=\"\",\"\",Анкета!I$218)","v":""},{"$f":"IF(Анкета!I$219=\"\",\"\",Анкета!I$219)","v":""},{"$f":"IF(Анкета!I$220=\"\",\"\",Анкета!I$220)","v":""},{"$f":"IF(Анкета!I$221=\"\",\"\",Анкета!I$221)","v":""},{"$f":"IF(Анкета!I$223=\"\",\"\",Анкета!I$223)","v":""},{"$f":"IF(Анкета!I$224=\"\",\"\",Анкета!I$224)","v":""},{"$f":"IF(Анкета!I$225=\"\",\"\",Анкета!I$225)","v":""},{"$f":"IF(Анкета!I$226=\"\",\"\",Анкета!I$226)","v":""},{"$f":"IF(Анкета!I$227=\"\",\"\",Анкета!I$227)","v":""},{"$f":"IF(Анкета!I$228=\"\",\"\",Анкета!I$228)","v":""},{"$f":"IF(Анкета!I$229=\"\",\"\",Анкета!I$229)","v":""},{"$f":"IF(Анкета!I$238=\"\",\"\",Анкета!I$238)","v":""},{"$f":"IF(Анкета!I$239=\"\",\"\",Анкета!I$239)","v":""},{"$f":"IF(Анкета!I$240=\"\",\"\",Анкета!I$240)","v":""},{"$f":"IF(Анкета!I$241=\"\",\"\",Анкета!I$241)","v":""},{"$f":"IF(Анкета!I$242=\"\",\"\",Анкета!I$242)","v":""},{"$f":"IF(Анкета!I$243=\"\",\"\",Анкета!I$243)","v":""},{"$f":"IF(Анкета!I$245=\"\",\"\",Анкета!I$245)","v":""},{"$f":"IF(Анкета!I$246=\"\",\"\",Анкета!I$246)","v":""},{"$f":"IF(Анкета!I$247=\"\",\"\",Анкета!I$247)","v":""},{"$f":"IF(Анкета!I$248=\"\",\"\",Анкета!I$248)","v":""},{"$f":"IF(Анкета!I$249=\"\",\"\",Анкета!I$249)","v":""},{"$f":"IF(Анкета!I$250=\"\",\"\",Анкета!I$250)","v":""},{"$f":"IF(Анкета!I$252=\"\",\"\",Анкета!I$252)","v":""},{"$f":"IF(Анкета!I$253=\"\",\"\",Анкета!I$253)","v":""},{"$f":"IF(Анкета!I$254=\"\",\"\",Анкета!I$254)","v":""},{"$f":"IF(Анкета!I$255=\"\",\"\",Анкета!I$255)","v":""},{"$f":"IF(Анкета!I$256=\"\",\"\",Анкета!I$256)","v":""},{"$f":"IF(Анкета!I$257=\"\",\"\",Анкета!I$257)","v":""},{"$f":"IF(Анкета!I$258=\"\",\"\",Анкета!I$258)","v":""},{"$f":"IF(Анкета!I$259=\"\",\"\",Анкета!I$259)","v":""},{"$f":"IF(Анкета!I$268=\"\",\"\",Анкета!I$268)","v":""},{"$f":"IF(Анкета!I$269=\"\",\"\",Анкета!I$269)","v":""},{"$f":"IF(Анкета!I$270=\"\",\"\",Анкета!I$270)","v":""},{"$f":"IF(Анкета!I$271=\"\",\"\",Анкета!I$271)","v":""},{"$f":"IF(Анкета!I$272=\"\",\"\",Анкета!I$272)","v":""},{"$f":"IF(Анкета!I$273=\"\",\"\",Анкета!I$273)","v":""},{"$f":"IF(Анкета!I$274=\"\",\"\",Анкета!I$274)","v":""}]
[null,{"$f":"IF(Анкета!F$19=\"\",\"\",Анкета!F$19)","v":""},{"$f":"IF(Анкета!F$20=\"\",\"\",Анкета!F$20)","v":""},{"$f":"IF(Анкета!F$21=\"\",\"\",Анкета!F$21)","v":""},{"$f":"IF(Анкета!F$22=\"\",\"\",Анкета!F$22)","v":""},{"$f":"IF(Анкета!F$23=\"\",\"\",Анкета!F$23)","v":""},{"$f":"IF(Анкета!F$24=\"\",\"\",Анкета!F$24)","v":""},{"$f":"IF(Анкета!F$25=\"\",\"\",Анкета!F$25)","v":""},{"$f":"IF(Анкета!F$26=\"\",\"\",Анкета!F$26)","v":""},{"$f":"IF(Анкета!F$32=\"\",\"\",Анкета!F$32)","v":""},{"$f":"IF(Анкета!F$43=\"\",\"\",Анкета!F$43)","v":""},{"$f":"IF(Анкета!F$34=\"\",\"\",Анкета!F$34)","v":""},{"$f":"IF(Анкета!F$35=\"\",\"\",Анкета!F$35)","v":""},{"$f":"IF(Анкета!F$27=\"\",\"\",Анкета!F$27)","v":""},{"$f":"IF(Анкета!F$28=\"\",\"\",Анкета!F$28)","v":""},{"$f":"IF(Анкета!F$29=\"\",\"\",Анкета!F$29)","v":""},{"$f":"IF(Анкета!F$30=\"\",\"\",Анкета!F$30)","v":""},{"$f":"IF(Анкета!F$31=\"\",\"\",Анкета!F$31)","v":""},{"$f":"IF(Анкета!F$33=\"\",\"\",Анкета!F$33)","v":""},{"$f":"IF(Анкета!F$36=\"\",\"\",Анкета!F$36)","v":""},{"$f":"IF(Анкета!F$37=\"\",\"\",Анкета!F$37)","v":""},{"$f":"IF(Анкета!F$38=\"\",\"\",Анкета!F$38)","v":""},{"$f":"IF(Анкета!F$39=\"\",\"\",Анкета!F$39)","v":""},{"$f":"IF(Анкета!F$40=\"\",\"\",Анкета!F$40)","v":""},{"$f":"IF(Анкета!F$41=\"\",\"\",Анкета!F$41)","v":""},{"$f":"IF(Анкета!F$42=\"\",\"\",Анкета!F$42)","v":""},"-","-",{"$f":"IF(Анкета!F$52=\"\",\"\",Анкета!F$52)","v":""},{"$f":"IF(Анкета!F$53=\"\",\"\",Анкета!F$53)","v":""},{"$f":"IF(Анкета!F$54=\"\",\"\",Анкета!F$54)","v":""},{"$f":"IF(Анкета!F$55=\"\",\"\",Анкета!F$55)","v":""},{"$f":"IF(Анкета!F$56=\"\",\"\",Анкета!F$56)","v":""},{"$f":"IF(Анкета!F$57=\"\",\"\",Анкета!F$57)","v":"Список технологий"},{"$f":"IF(Анкета!F$59=\"\",\"\",Анкета!F$59)","v":""},{"$f":"IF(Анкета!F$60=\"\",\"\",Анкета!F$60)","v":""},{"$f":"IF(Анкета!F$61=\"\",\"\",Анкета!F$61)","v":""},{"$f":"IF(Анкета!F$62=\"\",\"\",Анкета!F$62)","v":""},{"$f":"IF(Анкета!F$63=\"\",\"\",Анкета!F$63)","v":""},{"$f":"IF(Анкета!F$72=\"\",\"\",Анкета!F$72)","v":""},{"$f":"IF(Анкета!F$73=\"\",\"\",Анкета!F$73)","v":""},{"$f":"IF(Анкета!F$74=\"\",\"\",Анкета!F$74)","v":""},{"$f":"IF(Анкета!F$75=\"\",\"\",Анкета!F$75)","v":""},{"$f":"IF(Анкета!F$76=\"\",\"\",Анкета!F$76)","v":""},{"$f":"IF(Анкета!F$77=\"\",\"\",Анкета!F$77)","v":"Список технологий"},{"$f":"IF(Анкета!F$79=\"\",\"\",Анкета!F$79)","v":""},{"$f":"IF(Анкета!F$80=\"\",\"\",Анкета!F$80)","v":""},{"$f":"IF(Анкета!F$81=\"\",\"\",Анкета!F$81)","v":""},{"$f":"IF(Анкета!F$82=\"\",\"\",Анкета!F$82)","v":""},{"$f":"IF(Анкета!F$83=\"\",\"\",Анкета!F$83)","v":""},{"$f":"IF(Анкета!F$84=\"\",\"\",Анкета!F$84)","v":"Список технологий"},{"$f":"IF(Анкета!F$86=\"\",\"\",Анкета!F$86)","v":""},{"$f":"IF(Анкета!F$87=\"\",\"\",Анкета!F$87)","v":""},{"$f":"IF(Анкета!F$88=\"\",\"\",Анкета!F$88)","v":""},{"$f":"IF(Анкета!F$89=\"\",\"\",Анкета!F$89)","v":"Список технологий"},{"$f":"IF(Анкета!F$90=\"\",\"\",Анкета!F$90)","v":"Список технологий"},{"$f":"IF(Анкета!F$91=\"\",\"\",Анкета!F$91)","v":""},{"$f":"IF(Анкета!F$92=\"\",\"\",Анкета!F$92)","v":"Список моногородов"},{"$f":"IF(Анкета!F$94=\"\",\"\",Анкета!F$94)","v":""},{"$f":"IF(Анкета!F$95=\"\",\"\",Анкета!F$95)","v":""},{"$f":"IF(Анкета!F$96=\"\",\"\",Анкета!F$96)","v":""},{"$f":"IF(Анкета!F$97=\"\",\"\",Анкета!F$97)","v":""},{"$f":"IF(Анкета!F$98=\"\",\"\",Анкета!F$98)","v":""},{"$f":"IF(Анкета!F$99=\"\",\"\",Анкета!F$99)","v":""},{"$f":"IF(Анкета!F$100=\"\",\"\",Анкета!F$100)","v":""},{"$f":"IF(Анкета!F$101=\"\",\"\",Анкета!F$101)","v":"Список технологий"},{"$f":"IF(Анкета!F$110=\"\",\"\",Анкета!F$110)","v":""},{"$f":"IF(Анкета!F$111=\"\",\"\",Анкета!F$111)","v":""},{"$f":"IF(Анкета!F$112=\"\",\"\",Анкета!F$112)","v":""},{"$f":"IF(Анкета!F$113=\"\",\"\",Анкета!F$113)","v":""},{"$f":"IF(Анкета!F$114=\"\",\"\",Анкета!F$114)","v":""},{"$f":"IF(Анкета!F$115=\"\",\"\",Анкета!F$115)","v":"Список технологий"},{"$f":"IF(Анкета!F$117=\"\",\"\",Анкета!F$117)","v":""},{"$f":"IF(Анкета!F$118=\"\",\"\",Анкета!F$118)","v":""},{"$f":"IF(Анкета!F$119=\"\",\"\",Анкета!F$119)","v":""},{"$f":"IF(Анкета!F$120=\"\",\"\",Анкета!F$120)","v":""},{"$f":"IF(Анкета!F$121=\"\",\"\",Анкета!F$121)","v":""},{"$f":"IF(Анкета!F$122=\"\",\"\",Анкета!F$122)","v":"Список технологий"},{"$f":"IF(Анкета!F$124=\"\",\"\",Анкета!F$124)","v":""},{"$f":"IF(Анкета!F$125=\"\",\"\",Анкета!F$125)","v":""},{"$f":"IF(Анкета!F$126=\"\",\"\",Анкета!F$126)","v":""},{"$f":"IF(Анкета!F$127=\"\",\"\",Анкета!F$127)","v":"Список технологий"},{"$f":"IF(Анкета!F$128=\"\",\"\",Анкета!F$128)","v":"Список технологий"},{"$f":"IF(Анкета!F$129=\"\",\"\",Анкета!F$129)","v":""},{"$f":"IF(Анкета!F$131=\"\",\"\",Анкета!F$131)","v":""},{"$f":"IF(Анкета!F$132=\"\",\"\",Анкета!F$132)","v":""},{"$f":"IF(Анкета!F$133=\"\",\"\",Анкета!F$133)","v":""},{"$f":"IF(Анкета!F$134=\"\",\"\",Анкета!F$134)","v":""},{"$f":"IF(Анкета!F$135=\"\",\"\",Анкета!F$135)","v":""},{"$f":"IF(Анкета!F$136=\"\",\"\",Анкета!F$136)","v":""},{"$f":"IF(Анкета!F$137=\"\",\"\",Анкета!F$137)","v":""},{"$f":"IF(Анкета!F$138=\"\",\"\",Анкета!F$138)","v":"Список технологий"},{"$f":"IF(Анкета!F$147=\"\",\"\",Анкета!F$147)","v":""},{"$f":"IF(Анкета!F$148=\"\",\"\",Анкета!F$148)","v":""},{"$f":"IF(Анкета!F$149=\"\",\"\",Анкета!F$149)","v":""},{"$f":"IF(Анкета!F$150=\"\",\"\",Анкета!F$150)","v":""},{"$f":"IF(Анкета!F$151=\"\",\"\",Анкета!F$151)","v":""},{"$f":"IF(Анкета!F$152=\"\",\"\",Анкета!F$152)","v":"Список технологий"},{"$f":"IF(Анкета!F$154=\"\",\"\",Анкета!F$154)","v":""},{"$f":"IF(Анкета!F$155=\"\",\"\",Анкета!F$155)","v":""},{"$f":"IF(Анкета!F$156=\"\",\"\",Анкета!F$156)","v":""},{"$f":"IF(Анкета!F$157=\"\",\"\",Анкета!F$157)","v":""},{"$f":"IF(Анкета!F$158=\"\",\"\",Анкета!F$158)","v":"Список технологий"},{"$f":"IF(Анкета!F$160=\"\",\"\",Анкета!F$160)","v":""},{"$f":"IF(Анкета!F$161=\"\",\"\",Анкета!F$161)","v":""},{"$f":"IF(Анкета!F$162=\"\",\"\",Анкета!F$162)","v":""},{"$f":"IF(Анкета!F$163=\"\",\"\",Анкета!F$163)","v":"Список технологий"},{"$f":"IF(Анкета!F$172=\"\",\"\",Анкета!F$172)","v":""},{"$f":"IF(Анкета!F$173=\"\",\"\",Анкета!F$173)","v":""},{"$f":"IF(Анкета!F$174=\"\",\"\",Анкета!F$174)","v":""},{"$f":"IF(Анкета!F$175=\"\",\"\",Анкета!F$175)","v":""},{"$f":"IF(Анкета!F$176=\"\",\"\",Анкета!F$176)","v":""},{"$f":"IF(Анкета!F$177=\"\",\"\",Анкета!F$177)","v":""},{"$f":"IF(Анкета!F$179=\"\",\"\",Анкета!F$179)","v":""},{"$f":"IF(Анкета!F$180=\"\",\"\",Анкета!F$180)","v":""},{"$f":"IF(Анкета!F$181=\"\",\"\",Анкета!F$181)","v":""},{"$f":"IF(Анкета!F$182=\"\",\"\",Анкета!F$182)","v":"Список технологий"},{"$f":"IF(Анкета!F$183=\"\",\"\",Анкета!F$183)","v":""},{"$f":"IF(Анкета!F$185=\"\",\"\",Анкета!F$185)","v":""},{"$f":"IF(Анкета!F$186=\"\",\"\",Анкета!F$186)","v":""},{"$f":"IF(Анкета!F$187=\"\",\"\",Анкета!F$187)","v":""},{"$f":"IF(Анкета!F$188=\"\",\"\",Анкета!F$188)","v":"Список технологий"},{"$f":"IF(Анкета!F$189=\"\",\"\",Анкета!F$189)","v":"Список технологий"},{"$f":"IF(Анкета!F$190=\"\",\"\",Анкета!F$190)","v":""},{"$f":"IF(Анкета!F$191=\"\",\"\",Анкета!F$191)","v":"Список моногородов"},{"$f":"IF(Анкета!F$200=\"\",\"\",Анкета!F$200)","v":""},{"$f":"IF(Анкета!F$201=\"\",\"\",Анкета!F$201)","v":""},{"$f":"IF(Анкета!F$202=\"\",\"\",Анкета!F$202)","v":""},{"$f":"IF(Анкета!F$203=\"\",\"\",Анкета!F$203)","v":""},{"$f":"IF(Анкета!F$204=\"\",\"\",Анкета!F$204)","v":""},{"$f":"IF(Анкета!F$205=\"\",\"\",Анкета!F$205)","v":""},{"$f":"IF(Анкета!F$206=\"\",\"\",Анкета!F$206)","v":"Список технологий"},{"$f":"IF(Анкета!F$208=\"\",\"\",Анкета!F$208)","v":""},{"$f":"IF(Анкета!F$209=\"\",\"\",Анкета!F$209)","v":""},{"$f":"IF(Анкета!F$210=\"\",\"\",Анкета!F$210)","v":""},{"$f":"IF(Анкета!F$211=\"\",\"\",Анкета!F$211)","v":""},{"$f":"IF(Анкета!F$212=\"\",\"\",Анкета!F$212)","v":""},{"$f":"IF(Анкета!F$213=\"\",\"\",Анкета!F$213)","v":"Список технологий"},{"$f":"IF(Анкета!F$215=\"\",\"\",Анкета!F$215)","v":""},{"$f":"IF(Анкета!F$216=\"\",\"\",Анкета!F$216)","v":""},{"$f":"IF(Анкета!F$217=\"\",\"\",Анкета!F$217)","v":""},{"$f":"IF(Анкета!F$218=\"\",\"\",Анкета!F$218)","v":""},{"$f":"IF(Анкета!F$219=\"\",\"\",Анкета!F$219)","v":""},{"$f":"IF(Анкета!F$220=\"\",\"\",Анкета!F$220)","v":""},{"$f":"IF(Анкета!F$221=\"\",\"\",Анкета!F$221)","v":"Список технологий"},{"$f":"IF(Анкета!F$223=\"\",\"\",Анкета!F$223)","v":""},{"$f":"IF(Анкета!F$224=\"\",\"\",Анкета!F$224)","v":""},{"$f":"IF(Анкета!F$225=\"\",\"\",Анкета!F$225)","v":""},{"$f":"IF(Анкета!F$226=\"\",\"\",Анкета!F$226)","v":""},{"$f":"IF(Анкета!F$227=\"\",\"\",Анкета!F$227)","v":""},{"$f":"IF(Анкета!F$228=\"\",\"\",Анкета!F$228)","v":"Список технологий"},{"$f":"IF(Анкета!F$229=\"\",\"\",Анкета!F$229)","v":""},{"$f":"IF(Анкета!F$238=\"\",\"\",Анкета!F$238)","v":""},{"$f":"IF(Анкета!F$239=\"\",\"\",Анкета!F$239)","v":""},{"$f":"IF(Анкета!F$240=\"\",\"\",Анкета!F$240)","v":""},{"$f":"IF(Анкета!F$241=\"\",\"\",Анкета!F$241)","v":""},{"$f":"IF(Анкета!F$242=\"\",\"\",Анкета!F$242)","v":""},{"$f":"IF(Анкета!F$243=\"\",\"\",Анкета!F$243)","v":"Список технологий"},{"$f":"IF(Анкета!F$245=\"\",\"\",Анкета!F$245)","v":""},{"$f":"IF(Анкета!F$246=\"\",\"\",Анкета!F$246)","v":""},{"$f":"IF(Анкета!F$247=\"\",\"\",Анкета!F$247)","v":""},{"$f":"IF(Анкета!F$248=\"\",\"\",Анкета!F$248)","v":""},{"$f":"IF(Анкета!F$249=\"\",\"\",Анкета!F$249)","v":""},{"$f":"IF(Анкета!F$250=\"\",\"\",Анкета!F$250)","v":"Список технологий"},{"$f":"IF(Анкета!F$252=\"\",\"\",Анкета!F$252)","v":""},{"$f":"IF(Анкета!F$253=\"\",\"\",Анкета!F$253)","v":""},{"$f":"IF(Анкета!F$254=\"\",\"\",Анкета!F$254)","v":""},{"$f":"IF(Анкета!F$255=\"\",\"\",Анкета!F$255)","v":""},{"$f":"IF(Анкета!F$256=\"\",\"\",Анкета!F$256)","v":""},{"$f":"IF(Анкета!F$257=\"\",\"\",Анкета!F$257)","v":""},{"$f":"IF(Анкета!F$258=\"\",\"\",Анкета!F$258)","v":""},{"$f":"IF(Анкета!F$259=\"\",\"\",Анкета!F$259)","v":"Список технологий"},{"$f":"IF(Анкета!F$268=\"\",\"\",Анкета!F$268)","v":""},{"$f":"IF(Анкета!F$269=\"\",\"\",Анкета!F$269)","v":""},{"$f":"IF(Анкета!F$270=\"\",\"\",Анкета!F$270)","v":""},{"$f":"IF(Анкета!F$271=\"\",\"\",Анкета!F$271)","v":"Список технологий"},{"$f":"IF(Анкета!F$272=\"\",\"\",Анкета!F$272)","v":"Список технологий"},{"$f":"IF(Анкета!F$273=\"\",\"\",Анкета!F$273)","v":""},{"$f":"IF(Анкета!F$274=\"\",\"\",Анкета!F$274)","v":"Список моногородов"}]

{"sheet":"Tech","index":2,"n_rows":323,"n_cols":25,"rows_kept":323,"cut":false,"hidden":true,"merged":[]}
[]
[null,"Техническая таблица для коррректной работы макроса ",null,null,null,null,null,"Страны-члены ООН (в алфавитном порядке)","Список регионов РФ в алфавитном порядке",null,"Стадии реализации проекта",null,"Список национальных проектов",null,"Список экологичных технологий",null,"Список моногородов",null,"Список технологий",null,"Список ОЭЗ, ТОР и СПВ",null,"Список дорогостоющего оборудования для медицинских учреждений",null,"Класс устойчивости проекта по системе КЛЕВЕР"]
[null,"Номер номинации","Номинация","Сфера","Form Controls","Name",null,"Другое (свой вариант)","Другое (свой вариант)",null,"предынвестиционная",null,"Эффективная и конкурентная экономика",null,"Оборудование на экологическом топливе (биотопливо, электричество, водород, метан, СПГ, КПГ, ВИЭ)",null,"г.Абаза",null,"Технологии создания высокоэффективных систем генерации, распределения и хранения энергии",null,"ОЭЗ ППТ \"Алабуга\"",null,"Система трубопроводная медицинских газов/вакуума",null,"Бронза"]
[null,1,"Разработка и применение искусственного интеллекта","Создание и эксплуатация мощностей для работы ИИ",false,"Check1",null,"Абхазия","АЛТАЙСКИЙ КРАЙ",null,"инвестиционная",null,"Новые атомные и энергетические технологии",null,"Транспорт на экологическом топливе (биотопливо, электричество, водород, метан, СПГ, КПГ, ВИЭ)",null,"г.Алатырь",null,"Технологии создания энергетических систем с замкнутым топливным циклом",null,"ОЭЗ ППТ \"Липецк\"",null,"Система рентгеновской компьютерной томографии всего тела",null,"Серебро"]
[null,1,"Разработка и применение искусственного интеллекта","Разработка продуктов в области ИИ",false,"Check2",null,"Австралия","АМУРСКАЯ ОБЛАСТЬ",null,"эксплуатационная",null,"Новые материалы и химия",null,"Инфраструктура для заправки наземного транспорта экологичным топливом (биотопливо, электричество, водород, метан, СПГ, КПГ, ВИЭ)",null,"г.Алейск",null,"Технологии создания новых материалов с заданными свойствами и эксплуатационными характеристиками",null,"ОЭЗ ППТ \"Тольятти\"",null,"Система магнитно-резонансной томографии всего тела, со сверхпроводящим магнитом",null,"Золото"]
[null,2,"Развитие Арктики и Дальнего Востока","Транспортная инфраструктура для грузоперевозок",false,"Check3",null,"Австрия","АРХАНГЕЛЬСКАЯ ОБЛАСТЬ",null,null,null,"Промышленное обеспечение транспортной мобильности",null,"Инфраструктура для бункеровки судов экологичным топливом ( биотопливо, электротопливо, метанол, СУГ, СПГ, аммиак, водород)",null,"г.Александровск",null,"Технологии космического приборостроения для развития современных систем связи, навигации и дистанционного зондирования Земли",null,"ОЭЗ ППТ \"Титановая долина\"",null,"Система ангиографическая рентгеновская стационарная, цифровая",null,"Платина / Бриллиант"]
[null,2,"Развитие Арктики и Дальнего Востока","Транспортная инфраструктура для пассажирских перевозок",false,"Check4",null,"Азербайджан","АСТРАХАНСКАЯ ОБЛАСТЬ",null,null,null,"Средства производства и автоматизации",null,"Инфраструктура для перевалки или хранения пыльных грузов \"закрытым способом\"",null,"г.Алексин",null,"Технологическое обеспечение продовольственной безопасности",null,"ОЭЗ ППТ \"Моглино\"",null,"Анализатор масс-спектрометрический ИВД"]
[null,2,"Развитие Арктики и Дальнего Востока","Производственная инфраструктура",false,"Check5",null,"Албания","БЕЛГОРОДСКАЯ ОБЛАСТЬ",null,null,null,"Технологическое обеспечение продовольственной безопасности",null,null,null,"г.Анжеро-Судженск",null,"Технологии искусственного интеллекта, виртуальной и дополненной реальности",null,"ОЭЗ ППТ \" Калуга\"",null,"Система электромеханическая для литотрипсии, экстракорпоральная"]
[null,2,"Развитие Арктики и Дальнего Востока","Энергетика",false,"Check6",null,"Алжир","БРЯНСКАЯ ОБЛАСТЬ",null,null,null,"Технологическое обеспечение биоэкономики",null,null,null,"г.Армянск",null,"Технологии микроэлектроники и фотоники для систем хранения, обработки, передачи и защиты информации",null,"ОЭЗ ППТ \"Ступино Квадрат\"",null,"Система хирургическая роботизированная"]
[null,3,"Международная кооперация и импортозамещение","Транспортная инфраструктура для грузоперевозок",false,"Check7",null,"Ангола","ВЛАДИМИРСКАЯ ОБЛАСТЬ",null,null,null,"Развитие космической деятельности",null,null,null,"г.Арсеньев",null,"Технологии защищенных квантовых систем передачи данных",null,"ОЭЗ ППТ \"Лотос\"",null,"Конструкции модульные для чистых помещений"]
[null,3,"Международная кооперация и импортозамещение","Транспортная инфраструктура для пассажирских перевозок",false,"Check8",null,"Андорра","ВОЛГОГРАДСКАЯ ОБЛАСТЬ",null,null,null,"Экономика данных и цифровая трансформация государства",null,null,null,"г.Асбест",null,"Биомедицинские и когнитивные технологии здорового и активного долголетия.",null,"ОЭЗ ППТ \"Узловая\"",null,"Система лазерная офтальмологическая фемтосекундная твердотельная"]
[null,3,"Международная кооперация и импортозамещение","Производственная инфраструктура",false,"Check23",null,"Антигуа и Барбуда","ВОЛОГОДСКАЯ ОБЛАСТЬ",null,null,null,"Молодёжь и дети",null,null,null,"г.Аша",null,"Технологии разработки лекарственных средств и платформ нового поколения (биотехнологических, высокотехнологичных и радиофармацевтических лекарственных препаратов)",null,"ОЭЗ ППТ \"Центр\"",null,"Система линейного ускорителя для радиохирургии/лучевой терапии стереотаксическая"]
[null,3,"Международная кооперация и импортозамещение","Энергетика",false,"Check24",null,"Аргентина","ВОРОНЕЖСКАЯ ОБЛАСТЬ",null,null,null,"Кадры",null,null,null,"г.Байкальск",null,"Технологии персонализированного, лечебного и функционального питания для здоровьесбережения",null,"ОЭЗ ППТ \"Орел\"",null,"Система для брахитерапии с дистанционной загрузкой радионуклидного источника"]
[null,4,"Образование XXI века","Высшее образование / СПО",false,"Check9",null,"Армения","ДОНЕЦКАЯ НАРОДНАЯ РЕСПУБЛИКА",null,null,null,"Новые технологии сбережения здоровья",null,null,null,"г.Бакал",null,"Технологии разработки медицинских изделий нового поколения, включая биогибридные, бионические технологии и нейротехно логии",null,"ОЭЗ ППТ \"Кашира\"",null,"Иное оборудование, стоимостью свыше 50 млн руб. по \"Результатам мониторинга и анализа цен на медицинские изделия от X.2025\" Федеральной службы по надзору в сфере здравоохранения "]
[null,4,"Образование XXI века","Среднее общее образование",false,"Check10",null,"Афганистан","ЕВРЕЙСКАЯ АВТОНОМНАЯ ОБЛАСТЬ",null,null,null,"Продолжительная и активная жизнь",null,null,null,"г.Балахна",null,"Беспилотные и автономные системы в транспорте",null,"ОЭЗ ППТ \"Грозный\""]
[null,4,"Образование XXI века","Онлайн платформы",false,"Check21",null,"Багамские Острова","ЗАБАЙКАЛЬСКИЙ КРАЙ",null,null,null,"Экологическое благополучие",null,null,null,"г.Белая Холуница",null,null,null,"ОЭЗ ППТ \"Кулибин\""]
[null,5,"Здоровье нации","Медицинские учреждения",false,"Check11",null,"Бангладеш","ЗАПОРОЖСКАЯ ОБЛАСТЬ",null,null,null,"Семья",null,null,null,"г.Белебей",null,null,null,"ОЭЗ ППТ \"Алга\""]
[null,5,"Здоровье нации","Производство медицинских препаратов",false,"Check12",null,"Барбадос","ИВАНОВСКАЯ ОБЛАСТЬ",null,null,null,"Эффективная транспортная система",null,null,null,"г.Белев",null,null,null,"ОЭЗ ППТ \"Максимиха\""]
[null,5,"Здоровье нации","Производство медицинского оборудования",false,"Check13",null,"Бахрейн","ИРКУТСКАЯ ОБЛАСТЬ",null,null,null,"Беспилотные авиационные системы",null,null,null,"г.Белово",null,null,null,"ОЭЗ ППТ \"Доброград-1\""]
[null,6,"Качественная городская среда","Жилищное строительство",false,"Check14",null,"Беларусь","КАБАРДИНО-БАЛКАРСКАЯ РЕСПУБЛИКА",null,null,null,"Инфраструктура для жизни",null,null,null,"г.Белорецк",null,null,null,"ОЭЗ ППТ «Авангард»"]
[null,6,"Качественная городская среда","Транспортная инфраструктура",false,"Check15",null,"Белиз","КАЛИНИНГРАДСКАЯ ОБЛАСТЬ",null,null,null,"Туризм и гостеприимство",null,null,null,"г.Березовский",null,null,null,"ОЭЗ ППТ «Красноярская технологическая долина»"]
[null,6,"Качественная городская среда","Жилищно-коммунальная инфраструктура",false,"Check16",null,"Бельгия","КАЛУЖСКАЯ ОБЛАСТЬ",null,null,null,"Международная кооперация и экспорт",null,null,null,"г.Благовещенск",null,null,null,"ОЭЗ ППТ «Новгородская»"]
[null,6,"Качественная городская среда","Сохранение исторического облика города",false,"Check17",null,"Бенин","КАМЧАТСКИЙ КРАЙ",null,null,null,null,null,null,null,"г.Боровичи",null,null,null,"ОЭЗ ППТ «Оренбуржье»"]
[null,7,"Инфраструктурный каркас страны","Транспортная инфраструктура для грузоперевозок",false,"Check18",null,"Болгария","КАРАЧАЕВО-ЧЕРКЕССКАЯ РЕСПУБЛИКА",null,null,null,null,null,null,null,"г.Бородино",null,null,null,"ОЭЗ ППТ «Иваново»"]
[null,7,"Инфраструктурный каркас страны","Транспортная инфраструктура для пассажирских перевозок",false,"Check19",null,"Боливия","КЕМЕРОВСКАЯ ОБЛАСТЬ - КУЗБАСС",null,null,null,null,null,null,null,"г.Верхний Уфалей",null,null,null,"ОЭЗ ППТ «Стабна»"]
[null,7,"Инфраструктурный каркас страны","Энергетика",false,"Check22",null,"Босния и Герцеговина","КИРОВСКАЯ ОБЛАСТЬ",null,null,null,null,null,null,null,"г.Верхняя Пышма",null,null,null,"ОЭЗ ППТ «Третий полюс»"]
[null,8,"Технологическое лидерство","Производственная инфраструктура",false,"Check20",null,"Ботсвана","КОСТРОМСКАЯ ОБЛАСТЬ",null,null,null,null,null,null,null,"г.Верхняя Салда",null,null,null,"ОЭЗ ППТ «Усть-Луга»"]
[null,null,null,null,null,null,null,"Бразилия","КРАСНОДАРСКИЙ КРАЙ",null,null,null,null,null,null,null,"г.Верхняя Тура",null,null,null,"ОЭЗ ППТ «Пермь»"]
[null,null,null,null,null,null,null,"Бруней","КРАСНОЯРСКИЙ КРАЙ",null,null,null,null,null,null,null,"г.Вичуга",null,null,null,"ОЭЗ ППТ «Кузбасс»"]
[null,null,null,null,null,null,null,"Буркина-Фасо","КУРГАНСКАЯ ОБЛАСТЬ",null,null,null,null,null,null,null,"г.Володарск",null,null,null,"ОЭЗ ППТ «Химпром»"]
[null,null,null,null,null,null,null,"Бурунди","КУРСКАЯ ОБЛАСТЬ",null,null,null,null,null,null,null,"г.Волчанск",null,null,null,"ОЭЗ ППТ «Новочебоксарск»"]
[null,null,null,null,null,null,null,"Бутан","ЛЕНИНГРАДСКАЯ ОБЛАСТЬ",null,null,null,null,null,null,null,"г.Вольск",null,null,null,"ОЭЗ ППТ «Владимир»"]
[null,null,null,null,null,null,null,"Вануату","ЛИПЕЦКАЯ ОБЛАСТЬ",null,null,null,null,null,null,null,"г.Воркута",null,null,null,"ОЭЗ ППТ «Нягань»"]
[null,null,null,null,null,null,null,"Ватикан (Святой Престол)","ЛУГАНСКАЯ НАРОДНАЯ РЕСПУБЛИКА",null,null,null,null,null,null,null,"г.Ворсма",null,null,null,"ОЭЗ ППТ «Эммаусс»"]
[null,null,null,null,null,null,null,"Великобритания","МАГАДАНСКАЯ ОБЛАСТЬ",null,null,null,null,null,null,null,"г.Воткинск",null,null,null,"ОЭЗ ППТ «Система»"]
[null,null,null,null,null,null,null,"Венгрия","МОСКВА",null,null,null,null,null,null,null,"г.Выкса",null,null,null,"ОЭЗ ППТ «Ростовская»"]
[null,null,null,null,null,null,null,"Венесуэла","МОСКОВСКАЯ ОБЛАСТЬ",null,null,null,null,null,null,null,"г.Вязники",null,null,null,"ОЭЗ ППТ «Вологодская»"]
[null,null,null,null,null,null,null,"Вьетнам","МУРМАНСКАЯ ОБЛАСТЬ",null,null,null,null,null,null,null,"г.Вятские Поляны",null,null,null,"ОЭЗ ППТ «Большой Серпухов»"]
[null,null,null,null,null,null,null,"Габон","НЕНЕЦКИЙ АВТОНОМНЫЙ ОКРУГ",null,null,null,null,null,null,null,"г.Гаврилов-Ям",null,null,null,"ОЭЗ ППТ «Новосибирск»"]
[null,null,null,null,null,null,null,"Гаити","НИЖЕГОРОДСКАЯ ОБЛАСТЬ",null,null,null,null,null,null,null,"г.Гай",null,null,null,"ОЭЗ ППТ «Южноуральская»"]
[null,null,null,null,null,null,null,"Гайана","НОВГОРОДСКАЯ ОБЛАСТЬ",null,null,null,null,null,null,null,"г.Галич",null,null,null,"ОЭЗ ППТ «Зеленая Долина»"]
[null,null,null,null,null,null,null,"Гамбия","НОВОСИБИРСКАЯ ОБЛАСТЬ",null,null,null,null,null,null,null,"г.Глазов",null,null,null,"ОЭЗ ТВТ \"Дубна\""]
[null,null,null,null,null,null,null,"Гана","ОМСКАЯ ОБЛАСТЬ",null,null,null,null,null,null,null,"г.Горнозаводск",null,null,null,"ОЭЗ ТВТ \"Санкт-Петербург\""]
[null,null,null,null,null,null,null,"Гватемала","ОРЕНБУРГСКАЯ ОБЛАСТЬ",null,null,null,null,null,null,null,"г.Гороховец",null,null,null,"ОЭЗ ТВТ \"Томск\""]
[null,null,null,null,null,null,null,"Гвинея","ОРЛОВСКАЯ ОБЛАСТЬ",null,null,null,null,null,null,null,"г.Губкин",null,null,null,"ОЭЗ ТВТ \"Технополис \"Москва\""]
[null,null,null,null,null,null,null,"Гвинея-Бисау","ПЕНЗЕНСКАЯ ОБЛАСТЬ",null,null,null,null,null,null,null,"г.Гуково",null,null,null,"ОЭЗ ТВТ \"Исток\""]
[null,null,null,null,null,null,null,"Германия","ПЕРМСКИЙ КРАЙ",null,null,null,null,null,null,null,"г.Гурьевск",null,null,null,"ОЭЗ ТВТ \"Иннополис\""]
[null,null,null,null,null,null,null,"Гондурас","ПРИМОРСКИЙ КРАЙ",null,null,null,null,null,null,null,"г.Гусиноозерск",null,null,null,"ОЭЗ ТВТ в Саратовской области"]
[null,null,null,null,null,null,null,"Гренада","ПСКОВСКАЯ ОБЛАСТЬ",null,null,null,null,null,null,null,"г.Дагестанские Огни",null,null,null,"ОЭЗ ТРТ \"Байкальская гавань\""]
[null,null,null,null,null,null,null,"Греция","РЕСПУБЛИКА АДЫГЕЯ",null,null,null,null,null,null,null,"г.Далматово",null,null,null,"ОЭЗ ТРТ \"Бирюзовая Катунь\""]
[null,null,null,null,null,null,null,"Грузия","РЕСПУБЛИКА АЛТАЙ",null,null,null,null,null,null,null,"г.Дальнегорск",null,null,null,"ОЭЗ ТРТ \"Завидово\""]
[null,null,null,null,null,null,null,"Дания","РЕСПУБЛИКА БАШКОРТОСТАН",null,null,null,null,null,null,null,"г.Димитровград",null,null,null,"ОЭЗ ТРТ \"Ворота Байкала\""]
[null,null,null,null,null,null,null,"Демократическая Республика Конго","РЕСПУБЛИКА БУРЯТИЯ",null,null,null,null,null,null,null,"г.Донецк",null,null,null,"ОЭЗ ТРТ «Горная Шория»"]
[null,null,null,null,null,null,null,"Джибути","РЕСПУБЛИКА ДАГЕСТАН",null,null,null,null,null,null,null,"г.Дорогобуж",null,null,null,"ОЭЗ ТРТ \"Архыз\""]
[null,null,null,null,null,null,null,"Доминика","РЕСПУБЛИКА ИНГУШЕТИЯ",null,null,null,null,null,null,null,"г.Елабуга",null,null,null,"ОЭЗ ТРТ \"Ведучи\""]
[null,null,null,null,null,null,null,"Доминиканская Республика","РЕСПУБЛИКА КАЛМЫКИЯ",null,null,null,null,null,null,null,"г.Емва",null,null,null,"ОЭЗ ТРТ \"Эльбрус\""]
[null,null,null,null,null,null,null,"Египет","РЕСПУБЛИКА КАРЕЛИЯ",null,null,null,null,null,null,null,"г.Ермолино",null,null,null,"ОЭЗ ТРТ \"Каспийский прибрежный кластер\""]
[null,null,null,null,null,null,null,"Замбия","РЕСПУБЛИКА КОМИ",null,null,null,null,null,null,null,"г.Ефремов",null,null,null,"ОЭЗ ТРТ \"Армхи и Цори\""]
[null,null,null,null,null,null,null,"Зимбабве","РЕСПУБЛИКА КРЫМ",null,null,null,null,null,null,null,"г.Железногорск",null,null,null,"ОЭЗ ТРТ \"Мамисон\""]
[null,null,null,null,null,null,null,"Израиль","РЕСПУБЛИКА МАРИЙ ЭЛ",null,null,null,null,null,null,null,"г.Железногорск",null,null,null,"ПОЭЗ «Ульяновск»"]
[null,null,null,null,null,null,null,"Индия","РЕСПУБЛИКА МОРДОВИЯ",null,null,null,null,null,null,null,"г.Железногорск-Илимский",null,null,null,"ПОЭЗ «Оля»"]
[null,null,null,null,null,null,null,"Индонезия","РЕСПУБЛИКА САХА (ЯКУТИЯ)",null,null,null,null,null,null,null,"г.Заволжье",null,null,null,"ОЭЗ \"Калиниград\""]
[null,null,null,null,null,null,null,"Иордания","РЕСПУБЛИКА СЕВЕРНАЯ ОСЕТИЯ - АЛАНИЯ",null,null,null,null,null,null,null,"г.Закаменск",null,null,null,"ТОР Амуро-Хинганская"]
[null,null,null,null,null,null,null,"Ирак","РЕСПУБЛИКА ТАТАРСТАН",null,null,null,null,null,null,null,"г.Западная Двина",null,null,null,"ТОР Столица Севера"]
[null,null,null,null,null,null,null,"Иран","РЕСПУБЛИКА ТЫВА",null,null,null,null,null,null,null,"г.Заполярный",null,null,null,"ТОР Амурская"]
[null,null,null,null,null,null,null,"Ирландия","РЕСПУБЛИКА ХАКАСИЯ",null,null,null,null,null,null,null,"г.Заречный",null,null,null,"ТОР Большой Камень"]
[null,null,null,null,null,null,null,"Исландия","РОСТОВСКАЯ ОБЛАСТЬ",null,null,null,null,null,null,null,"г.Заринск",null,null,null,"ТОР Бурятия"]
[null,null,null,null,null,null,null,"Испания","РЯЗАНСКАЯ ОБЛАСТЬ",null,null,null,null,null,null,null,"г.Зверево",null,null,null,"ТОР Сахалин"]
[null,null,null,null,null,null,null,"Италия","САМАРСКАЯ ОБЛАСТЬ",null,null,null,null,null,null,null,"г.Зеленогорск",null,null,null,"ТОР Забайкалье"]
[null,null,null,null,null,null,null,"Йемен","САНКТ-ПЕТЕРБУРГ",null,null,null,null,null,null,null,"г.Зеленодольск",null,null,null,"ТОР Камчатка"]
[null,null,null,null,null,null,null,"Кабо-Верде","САРАТОВСКАЯ ОБЛАСТЬ",null,null,null,null,null,null,null,"г.Златоуст",null,null,null,"ТОР Краснокаменск"]
[null,null,null,null,null,null,null,"Казахстан","САХАЛИНСКАЯ ОБЛАСТЬ",null,null,null,null,null,null,null,"г.Инза",null,null,null,"ТОР Курилы"]
[null,null,null,null,null,null,null,"Камбоджа","СВЕРДЛОВСКАЯ ОБЛАСТЬ",null,null,null,null,null,null,null,"г.Инта",null,null,null,"ТОР Михайловский"]
[null,null,null,null,null,null,null,"Камерун","СЕВАСТОПОЛЬ",null,null,null,null,null,null,null,"г.Калтан",null,null,null,"ТОР Находка"]
[null,null,null,null,null,null,null,"Канада","СМОЛЕНСКАЯ ОБЛАСТЬ",null,null,null,null,null,null,null,"г.Каменск-Уральский",null,null,null,"ТОР Приморье"]
[null,null,null,null,null,null,null,"Катар","СТАВРОПОЛЬСКИЙ КРАЙ",null,null,null,null,null,null,null,"г.Камешково",null,null,null,"ТОР Столица Арктики"]
[null,null,null,null,null,null,null,"Кения","ТАМБОВСКАЯ ОБЛАСТЬ",null,null,null,null,null,null,null,"г.Канаш",null,null,null,"ТОР Хабаровск"]
[null,null,null,null,null,null,null,"Кипр","ТВЕРСКАЯ ОБЛАСТЬ",null,null,null,null,null,null,null,"г.Карабаш",null,null,null,"ТОР Чукотка"]
[null,null,null,null,null,null,null,"Кирибати","ТОМСКАЯ ОБЛАСТЬ",null,null,null,null,null,null,null,"г.Карачев",null,null,null,"ТОР Южная Якутия"]
[null,null,null,null,null,null,null,"Китай","ТУЛЬСКАЯ ОБЛАСТЬ",null,null,null,null,null,null,null,"г.Карпинск",null,null,null,"ТОР Якутия"]
[null,null,null,null,null,null,null,"КНДР","ТЮМЕНСКАЯ ОБЛАСТЬ",null,null,null,null,null,null,null,"г.Каспийск",null,null,null,"Свободный Порт Владивосток"]
[null,null,null,null,null,null,null,"Колумбия","УДМУРТСКАЯ РЕСПУБЛИКА",null,null,null,null,null,null,null,"г.Катайск"]
[null,null,null,null,null,null,null,"Коморы","УЛЬЯНОВСКАЯ ОБЛАСТЬ",null,null,null,null,null,null,null,"г.Качканар"]
[null,null,null,null,null,null,null,"Коста-Рика","ХАБАРОВСКИЙ КРАЙ",null,null,null,null,null,null,null,"г.Кимовск"]
[null,null,null,null,null,null,null,"Кот-д’Ивуар","ХАНТЫ-МАНСИЙСКИЙ АВТОНОМНЫЙ ОКРУГ — ЮГРА",null,null,null,null,null,null,null,"г.Кирово-Чепецк"]
[null,null,null,null,null,null,null,"Куба","ХЕРСОНСКАЯ ОБЛАСТЬ",null,null,null,null,null,null,null,"г.Кировск"]
[null,null,null,null,null,null,null,"Кувейт","ЧЕЛЯБИНСКАЯ ОБЛАСТЬ",null,null,null,null,null,null,null,"г.Кирс"]
[null,null,null,null,null,null,null,"Кыргызстан","ЧЕЧЕНСКАЯ РЕСПУБЛИКА",null,null,null,null,null,null,null,"г.Киселевск"]
[null,null,null,null,null,null,null,"Лаос","ЧУВАШСКАЯ РЕСПУБЛИКА",null,null,null,null,null,null,null,"г.Клинцы"]
[null,null,null,null,null,null,null,"Латвия","ЧУКОТСКИЙ АВТОНОМНЫЙ ОКРУГ",null,null,null,null,null,null,null,"г.Княгинино"]
[null,null,null,null,null,null,null,"Лесото","ЯМАЛО-НЕНЕЦКИЙ АВТОНОМНЫЙ ОКРУГ",null,null,null,null,null,null,null,"г.Ковдор"]
[null,null,null,null,null,null,null,"Либерия","ЯРОСЛАВСКАЯ ОБЛАСТЬ",null,null,null,null,null,null,null,"г.Козьмодемьянск"]
[null,null,null,null,null,null,null,"Ливан",null,null,null,null,null,null,null,null,"г.Кольчугино"]
[null,null,null,null,null,null,null,"Ливия",null,null,null,null,null,null,null,null,"г.Кондопога"]
[null,null,null,null,null,null,null,"Литва",null,null,null,null,null,null,null,null,"г.Кондрово"]
[null,null,null,null,null,null,null,"Лихтенштейн",null,null,null,null,null,null,null,null,"г.Коряжма"]
[null,null,null,null,null,null,null,"Люксембург",null,null,null,null,null,null,null,null,"г.Костомукша"]
[null,null,null,null,null,null,null,"Маврикий",null,null,null,null,null,null,null,null,"г.Котовск"]
[null,null,null,null,null,null,null,"Мавритания",null,null,null,null,null,null,null,null,"г.Красавино"]
[null,null,null,null,null,null,null,"Мадагаскар",null,null,null,null,null,null,null,null,"г.Красновишерск"]
[null,null,null,null,null,null,null,"Македония (Северная)",null,null,null,null,null,null,null,null,"г.Краснокаменск"]
[null,null,null,null,null,null,null,"Малави",null,null,null,null,null,null,null,null,"г.Красноперекопск"]
[null,null,null,null,null,null,null,"Малайзия",null,null,null,null,null,null,null,null,"г.Краснотурьинск"]
[null,null,null,null,null,null,null,"Мали",null,null,null,null,null,null,null,null,"г.Красноуральск"]
[null,null,null,null,null,null,null,"Мальдивы",null,null,null,null,null,null,null,null,"г.Кувандык"]
[null,null,null,null,null,null,null,"Мальта",null,null,null,null,null,null,null,null,"г.Кувшиново"]
[null,null,null,null,null,null,null,"Марокко",null,null,null,null,null,null,null,null,"г.Кулебаки"]
[null,null,null,null,null,null,null,"Маршалловы Острова",null,null,null,null,null,null,null,null,"г.Кумертау"]
[null,null,null,null,null,null,null,"Мексика",null,null,null,null,null,null,null,null,"г.Курлово"]
[null,null,null,null,null,null,null,"Микронезия",null,null,null,null,null,null,null,null,"г.Лахденпохья"]
[null,null,null,null,null,null,null,"Мозамбик",null,null,null,null,null,null,null,null,"г.Лебедянь"]
[null,null,null,null,null,null,null,"Молдавия",null,null,null,null,null,null,null,null,"г.Ленинск-Кузнецкий"]
[null,null,null,null,null,null,null,"Монако",null,null,null,null,null,null,null,null,"г.Лесосибирск"]
[null,null,null,null,null,null,null,"Монголия",null,null,null,null,null,null,null,null,"г.Луза"]
[null,null,null,null,null,null,null,"Мьянма",null,null,null,null,null,null,null,null,"г.Магнитогорск"]
[null,null,null,null,null,null,null,"Намибия",null,null,null,null,null,null,null,null,"г.Мантурово"]
[null,null,null,null,null,null,null,"Науру",null,null,null,null,null,null,null,null,"г.Мариинск"]
[null,null,null,null,null,null,null,"Непал",null,null,null,null,null,null,null,null,"г.Мариинский Посад"]
[null,null,null,null,null,null,null,"Нигер",null,null,null,null,null,null,null,null,"г.Медногорск"]
[null,null,null,null,null,null,null,"Нигерия",null,null,null,null,null,null,null,null,"г.Междуреченск"]
[null,null,null,null,null,null,null,"Нидерланды",null,null,null,null,null,null,null,null,"г.Меленки"]
[null,null,null,null,null,null,null,"Никарагуа",null,null,null,null,null,null,null,null,"г.Менделеевск"]
[null,null,null,null,null,null,null,"Новая Зеландия",null,null,null,null,null,null,null,null,"г.Миасс"]
[null,null,null,null,null,null,null,"Норвегия",null,null,null,null,null,null,null,null,"г.Миньяр"]
[null,null,null,null,null,null,null,"Объединённые Арабские Эмираты",null,null,null,null,null,null,null,null,"г.Мирный"]
[null,null,null,null,null,null,null,"Оман",null,null,null,null,null,null,null,null,"г.Михайловка"]
[null,null,null,null,null,null,null,"Пакистан",null,null,null,null,null,null,null,null,"г.Мончегорск"]
[null,null,null,null,null,null,null,"Палау",null,null,null,null,null,null,null,null,"г.Мценск"]
[null,null,null,null,null,null,null,"Палестина",null,null,null,null,null,null,null,null,"г.Мыски"]
[null,null,null,null,null,null,null,"Панама",null,null,null,null,null,null,null,null,"г.Набережные Челны"]
[null,null,null,null,null,null,null,"Папуа — Новая Гвинея",null,null,null,null,null,null,null,null,"г.Навашино"]
[null,null,null,null,null,null,null,"Парагвай",null,null,null,null,null,null,null,null,"г.Наволоки"]
[null,null,null,null,null,null,null,"Перу",null,null,null,null,null,null,null,null,"г.Невинномысск"]
[null,null,null,null,null,null,null,"Польша",null,null,null,null,null,null,null,null,"г.Нерюнгри"]
[null,null,null,null,null,null,null,"Португалия",null,null,null,null,null,null,null,null,"г.Нефтекамск"]
[null,null,null,null,null,null,null,"Республика Конго",null,null,null,null,null,null,null,null,"г.Нижнекамск"]
[null,null,null,null,null,null,null,"Республика Корея",null,null,null,null,null,null,null,null,"г.Нижний Тагил"]
[null,null,null,null,null,null,null,"Республика Молдова",null,null,null,null,null,null,null,null,"г.Никольск"]
[null,null,null,null,null,null,null,"Россия",null,null,null,null,null,null,null,null,"г.Новоалтайск"]
[null,null,null,null,null,null,null,"Руанда",null,null,null,null,null,null,null,null,"г.Новодвинск"]
[null,null,null,null,null,null,null,"Румыния",null,null,null,null,null,null,null,null,"г.Новокузнецк"]
[null,null,null,null,null,null,null,"Сальвадор",null,null,null,null,null,null,null,null,"г.Новокуйбышевск"]
[null,null,null,null,null,null,null,"Самоа",null,null,null,null,null,null,null,null,"г.Новомичуринск"]
[null,null,null,null,null,null,null,"Сан-Марино",null,null,null,null,null,null,null,null,"г.Новотроицк"]
[null,null,null,null,null,null,null,"Сан-Томе и Принсипи",null,null,null,null,null,null,null,null,"г.Новоульяновск"]
[null,null,null,null,null,null,null,"Саудовская Аравия",null,null,null,null,null,null,null,null,"г.Новочебоксарск"]
[null,null,null,null,null,null,null,"Северная Македония",null,null,null,null,null,null,null,null,"г.Норильск"]
[null,null,null,null,null,null,null,"Сейшелы",null,null,null,null,null,null,null,null,"г.Нытва"]
[null,null,null,null,null,null,null,"Сенегал",null,null,null,null,null,null,null,null,"г.Нязепетровск"]
[null,null,null,null,null,null,null,"Сент-Винсент и Гренадины",null,null,null,null,null,null,null,null,"г.Озерск"]
[null,null,null,null,null,null,null,"Сент-Китс и Невис",null,null,null,null,null,null,null,null,"г.Оленегорск"]
[null,null,null,null,null,null,null,"Сент-Люсия",null,null,null,null,null,null,null,null,"г.Омутнинск"]
[null,null,null,null,null,null,null,"Сербия",null,null,null,null,null,null,null,null,"г.Онега"]
[null,null,null,null,null,null,null,"Сингапур",null,null,null,null,null,null,null,null,"г.Осинники"]
[null,null,null,null,null,null,null,"Сирийская Арабская Республика",null,null,null,null,null,null,null,null,"г.Очер"]
[null,null,null,null,null,null,null,"Словакия",null,null,null,null,null,null,null,null,"г.Павлово"]
[null,null,null,null,null,null,null,"Словения",null,null,null,null,null,null,null,null,"г.Павловск"]
[null,null,null,null,null,null,null,"Соломоновы Острова",null,null,null,null,null,null,null,null,"г.Первомайск"]
[null,null,null,null,null,null,null,"Сомали",null,null,null,null,null,null,null,null,"г.Первоуральск"]
[null,null,null,null,null,null,null,"Судан",null,null,null,null,null,null,null,null,"г.Пестово"]
[null,null,null,null,null,null,null,"Суринам",null,null,null,null,null,null,null,null,"г.Петровск"]
[null,null,null,null,null,null,null,"США",null,null,null,null,null,null,null,null,"г.Петухово"]
[null,null,null,null,null,null,null,"Сьерра-Леоне",null,null,null,null,null,null,null,null,"г.Печоры"]
[null,null,null,null,null,null,null,"Таджикистан",null,null,null,null,null,null,null,null,"г.Пикалево"]
[null,null,null,null,null,null,null,"Таиланд",null,null,null,null,null,null,null,null,"г.Питкяранта"]
[null,null,null,null,null,null,null,"Танзания",null,null,null,null,null,null,null,null,"г.Полевской"]
[null,null,null,null,null,null,null,"Тимор-Лесте",null,null,null,null,null,null,null,null,"г.Полысаево"]
[null,null,null,null,null,null,null,"Того",null,null,null,null,null,null,null,null,"г.Приволжск"]
[null,null,null,null,null,null,null,"Тонга",null,null,null,null,null,null,null,null,"г.Прокопьевск"]
[null,null,null,null,null,null,null,"Тринидад и Тобаго",null,null,null,null,null,null,null,null,"г.Пудож"]
[null,null,null,null,null,null,null,"Тувалу",null,null,null,null,null,null,null,null,"г.Райчихинск"]
[null,null,null,null,null,null,null,"Тунис",null,null,null,null,null,null,null,null,"г.Ревда"]
[null,null,null,null,null,null,null,"Туркменистан",null,null,null,null,null,null,null,null,"г.Россошь"]
[null,null,null,null,null,null,null,"Турция",null,null,null,null,null,null,null,null,"г.Ростов"]
[null,null,null,null,null,null,null,"Уганда",null,null,null,null,null,null,null,null,"г.Рузаевка"]
[null,null,null,null,null,null,null,"Узбекистан",null,null,null,null,null,null,null,null,"г.Салаир"]
[null,null,null,null,null,null,null,"Украина",null,null,null,null,null,null,null,null,"г.Сарапул"]
[null,null,null,null,null,null,null,"Уругвай",null,null,null,null,null,null,null,null,"г.Сатка"]
[null,null,null,null,null,null,null,"Фиджи",null,null,null,null,null,null,null,null,"г.Саяногорск"]
[null,null,null,null,null,null,null,"Филиппины",null,null,null,null,null,null,null,null,"г.Саянск"]
[null,null,null,null,null,null,null,"Финляндия",null,null,null,null,null,null,null,null,"г.Свободный"]
[null,null,null,null,null,null,null,"Франция",null,null,null,null,null,null,null,null,"г.Северобайкальск"]
[null,null,null,null,null,null,null,"Хорватия",null,null,null,null,null,null,null,null,"г.Северодвинск"]
[null,null,null,null,null,null,null,"ЦАР",null,null,null,null,null,null,null,null,"г.Североуральск"]
[null,null,null,null,null,null,null,"Чад",null,null,null,null,null,null,null,null,"г.Северск"]
[null,null,null,null,null,null,null,"Чехия",null,null,null,null,null,null,null,null,"г.Сегежа"]
[null,null,null,null,null,null,null,"Чили",null,null,null,null,null,null,null,null,"г.Сельцо"]
[null,null,null,null,null,null,null,"Швейцария",null,null,null,null,null,null,null,null,"г.Семилуки"]
[null,null,null,null,null,null,null,"Швеция",null,null,null,null,null,null,null,null,"г.Сердобск"]
[null,null,null,null,null,null,null,"Шри-Ланка",null,null,null,null,null,null,null,null,"г.Серов"]
[null,null,null,null,null,null,null,"Эквадор",null,null,null,null,null,null,null,null,"г.Сим"]
[null,null,null,null,null,null,null,"Экваториальная Гвинея",null,null,null,null,null,null,null,null,"г.Сланцы"]
[null,null,null,null,null,null,null,"Эритрея",null,null,null,null,null,null,null,null,"г.Снежинск"]
[null,null,null,null,null,null,null,"Эсватини",null,null,null,null,null,null,null,null,"г.Сокол"]
[null,null,null,null,null,null,null,"Эстония",null,null,null,null,null,null,null,null,"г.Соль-Илецк"]
[null,null,null,null,null,null,null,"Эфиопия",null,null,null,null,null,null,null,null,"г.Сорск"]
[null,null,null,null,null,null,null,"Южная Африка",null,null,null,null,null,null,null,null,"г.Сосенский"]
[null,null,null,null,null,null,null,"Южная Осетия",null,null,null,null,null,null,null,null,"г.Спасск-Дальний"]
[null,null,null,null,null,null,null,"Южный Судан",null,null,null,null,null,null,null,null,"г.Суворов"]
[null,null,null,null,null,null,null,"Ямайка",null,null,null,null,null,null,null,null,"г.Суоярви"]
[null,null,null,null,null,null,null,"Япония",null,null,null,null,null,null,null,null,"г.Сураж"]
[null,null,null,null,null,null,null,null,null,null,null,null,null,null,null,null,"г.Сясьстрой"]
[null,null,null,null,null,null,null,null,null,null,null,null,null,null,null,null,"г.Тайга"]
[null,null,null,null,null,null,null,null,null,null,null,null,null,null,null,null,"г.Таштагол"]
[null,null,null,null,null,null,null,null,null,null,null,null,null,null,null,null,"г.Тейково"]
[null,null,null,null,null,null,null,null,null,null,null,null,null,null,null,null,"г.Тольятти"]
[null,null,null,null,null,null,null,null,null,null,null,null,null,null,null,null,"г.Топки"]
[null,null,null,null,null,null,null,null,null,null,null,null,null,null,null,null,"г.Трехгорный"]
[null,null,null,null,null,null,null,null,null,null,null,null,null,null,null,null,"г.Тулун"]
[null,null,null,null,null,null,null,null,null,null,null,null,null,null,null,null,"г.Тутаев"]
[null,null,null,null,null,null,null,null,null,null,null,null,null,null,null,null,"г.Тында"]
[null,null,null,null,null,null,null,null,null,null,null,null,null,null,null,null,"г.Удачный"]
[null,null,null,null,null,null,null,null,null,null,null,null,null,null,null,null,"г.Удомля"]
[null,null,null,null,null,null,null,null,null,null,null,null,null,null,null,null,"г.Уржум"]
[null,null,null,null,null,null,null,null,null,null,null,null,null,null,null,null,"г.Усолье-Сибирское"]
[null,null,null,null,null,null,null,null,null,null,null,null,null,null,null,null,"г.Усть-Илимск"]
[null,null,null,null,null,null,null,null,null,null,null,null,null,null,null,null,"г.Усть-Катав"]
[null,null,null,null,null,null,null,null,null,null,null,null,null,null,null,null,"г.Учалы"]
[null,null,null,null,null,null,null,null,null,null,null,null,null,null,null,null,"г.Фокино"]
[null,null,null,null,null,null,null,null,null,null,null,null,null,null,null,null,"г.Фролово"]
[null,null,null,null,null,null,null,null,null,null,null,null,null,null,null,null,"г.Фурманов"]
[null,null,null,null,null,null,null,null,null,null,null,null,null,null,null,null,"г.Чапаевск"]
[null,null,null,null,null,null,null,null,null,null,null,null,null,null,null,null,"г.Чебаркуль"]
[null,null,null,null,null,null,null,null,null,null,null,null,null,null,null,null,"г.Черемхово"]
[null,null,null,null,null,null,null,null,null,null,null,null,null,null,null,null,"г.Череповец"]
[null,null,null,null,null,null,null,null,null,null,null,null,null,null,null,null,"г.Черногорск"]
[null,null,null,null,null,null,null,null,null,null,null,null,null,null,null,null,"г.Чистополь"]
[null,null,null,null,null,null,null,null,null,null,null,null,null,null,null,null,"г.Чусовой"]
[null,null,null,null,null,null,null,null,null,null,null,null,null,null,null,null,"г.Шелехов"]
[null,null,null,null,null,null,null,null,null,null,null,null,null,null,null,null,"г.Шумерля"]
[null,null,null,null,null,null,null,null,null,null,null,null,null,null,null,null,"г.Южа"]
[null,null,null,null,null,null,null,null,null,null,null,null,null,null,null,null,"г.Юрга"]
[null,null,null,null,null,null,null,null,null,null,null,null,null,null,null,null,"г.Яровое"]
[null,null,null,null,null,null,null,null,null,null,null,null,null,null,null,null,"г.Ясный"]
[null,null,null,null,null,null,null,null,null,null,null,null,null,null,null,null,"пос.Айхал"]
[null,null,null,null,null,null,null,null,null,null,null,null,null,null,null,null,"пос.Атяшево"]
[null,null,null,null,null,null,null,null,null,null,null,null,null,null,null,null,"пос.Белая Березка"]
[null,null,null,null,null,null,null,null,null,null,null,null,null,null,null,null,"пос.Белогорск"]
[null,null,null,null,null,null,null,null,null,null,null,null,null,null,null,null,"пос.Бытошь"]
[null,null,null,null,null,null,null,null,null,null,null,null,null,null,null,null,"пос.Варгаши"]
[null,null,null,null,null,null,null,null,null,null,null,null,null,null,null,null,"пос.Великооктябрьский"]
[null,null,null,null,null,null,null,null,null,null,null,null,null,null,null,null,"пос.Вершина Тёи"]
[null,null,null,null,null,null,null,null,null,null,null,null,null,null,null,null,"пос.Вершино-Дарасунский"]
[null,null,null,null,null,null,null,null,null,null,null,null,null,null,null,null,"пос.Восток"]
[null,null,null,null,null,null,null,null,null,null,null,null,null,null,null,null,"пос.Вяртсиля"]
[null,null,null,null,null,null,null,null,null,null,null,null,null,null,null,null,"пос.Горный"]
[null,null,null,null,null,null,null,null,null,null,null,null,null,null,null,null,"пос.Демьяново"]
[null,null,null,null,null,null,null,null,null,null,null,null,null,null,null,null,"пос.Елань-Коленовский"]
[null,null,null,null,null,null,null,null,null,null,null,null,null,null,null,null,"пос.Елатьма"]
[null,null,null,null,null,null,null,null,null,null,null,null,null,null,null,null,"пос.Жарковский"]
[null,null,null,null,null,null,null,null,null,null,null,null,null,null,null,null,"пос.Жешарт"]
[null,null,null,null,null,null,null,null,null,null,null,null,null,null,null,null,"пос.Жирекен"]
[null,null,null,null,null,null,null,null,null,null,null,null,null,null,null,null,"пос.Знаменка"]
[null,null,null,null,null,null,null,null,null,null,null,null,null,null,null,null,"пос.Ивот"]
[null,null,null,null,null,null,null,null,null,null,null,null,null,null,null,null,"пос.Кадошкино"]
[null,null,null,null,null,null,null,null,null,null,null,null,null,null,null,null,"пос.Калашниково"]
[null,null,null,null,null,null,null,null,null,null,null,null,null,null,null,null,"пос.Каменка"]
[null,null,null,null,null,null,null,null,null,null,null,null,null,null,null,null,"пос.Каменск"]
[null,null,null,null,null,null,null,null,null,null,null,null,null,null,null,null,"пос.Камские Поляны"]
[null,null,null,null,null,null,null,null,null,null,null,null,null,null,null,null,"пос.Кизема"]
[null,null,null,null,null,null,null,null,null,null,null,null,null,null,null,null,"пос.Кокуй"]
[null,null,null,null,null,null,null,null,null,null,null,null,null,null,null,null,"пос.Колобово"]
[null,null,null,null,null,null,null,null,null,null,null,null,null,null,null,null,"пос.Комсомольский"]
[null,null,null,null,null,null,null,null,null,null,null,null,null,null,null,null,"пос.Красная Поляна"]
[null,null,null,null,null,null,null,null,null,null,null,null,null,null,null,null,"пос.Краснобродский"]
[null,null,null,null,null,null,null,null,null,null,null,null,null,null,null,null,"пос.Краснофарфорный"]
[null,null,null,null,null,null,null,null,null,null,null,null,null,null,null,null,"пос.Красный Яр"]
[null,null,null,null,null,null,null,null,null,null,null,null,null,null,null,null,"пос.Лесной"]
[null,null,null,null,null,null,null,null,null,null,null,null,null,null,null,null,"пос.Линево"]
[null,null,null,null,null,null,null,null,null,null,null,null,null,null,null,null,"пос.Липовцы"]
[null,null,null,null,null,null,null,null,null,null,null,null,null,null,null,null,"пос.Лучегорск"]
[null,null,null,null,null,null,null,null,null,null,null,null,null,null,null,null,"пос.Любохна"]
[null,null,null,null,null,null,null,null,null,null,null,null,null,null,null,null,"пос.Малышева"]
[null,null,null,null,null,null,null,null,null,null,null,null,null,null,null,null,"пос.Медногорский"]
[null,null,null,null,null,null,null,null,null,null,null,null,null,null,null,null,"пос.Мокшан"]
[null,null,null,null,null,null,null,null,null,null,null,null,null,null,null,null,"пос.Мохсоголлох"]
[null,null,null,null,null,null,null,null,null,null,null,null,null,null,null,null,"пос.Муезерский"]
[null,null,null,null,null,null,null,null,null,null,null,null,null,null,null,null,"пос.Мундыбаш"]
[null,null,null,null,null,null,null,null,null,null,null,null,null,null,null,null,"пос.Мурыгино"]
[null,null,null,null,null,null,null,null,null,null,null,null,null,null,null,null,"пос.Мухтолово"]
[null,null,null,null,null,null,null,null,null,null,null,null,null,null,null,null,"пос.Надвоицы"]
[null,null,null,null,null,null,null,null,null,null,null,null,null,null,null,null,"пос.Нижний Куранах"]
[null,null,null,null,null,null,null,null,null,null,null,null,null,null,null,null,"пос.Никель"]
[null,null,null,null,null,null,null,null,null,null,null,null,null,null,null,null,"пос.Новоорловск"]
[null,null,null,null,null,null,null,null,null,null,null,null,null,null,null,null,"пос.Новопавловка"]
[null,null,null,null,null,null,null,null,null,null,null,null,null,null,null,null,"пос.Новошахтинский"]
[null,null,null,null,null,null,null,null,null,null,null,null,null,null,null,null,"пос.Октябрьский"]
[null,null,null,null,null,null,null,null,null,null,null,null,null,null,null,null,"пос.Парфино"]
[null,null,null,null,null,null,null,null,null,null,null,null,null,null,null,null,"пос.Первомайский"]
[null,null,null,null,null,null,null,null,null,null,null,null,null,null,null,null,"пос.Первомайский"]
[null,null,null,null,null,null,null,null,null,null,null,null,null,null,null,null,"пос.Песочное"]
[null,null,null,null,null,null,null,null,null,null,null,null,null,null,null,null,"пос.Петровский"]
[null,null,null,null,null,null,null,null,null,null,null,null,null,null,null,null,"пос.Пиндуши"]
[null,null,null,null,null,null,null,null,null,null,null,null,null,null,null,null,"пос.Побединка"]
[null,null,null,null,null,null,null,null,null,null,null,null,null,null,null,null,"пос.Погар"]
[null,null,null,null,null,null,null,null,null,null,null,null,null,null,null,null,"пос.Ревда"]
[null,null,null,null,null,null,null,null,null,null,null,null,null,null,null,null,"пос.Решетиха"]
[null,null,null,null,null,null,null,null,null,null,null,null,null,null,null,null,"пос.Савино"]
[null,null,null,null,null,null,null,null,null,null,null,null,null,null,null,null,"пос.Саган-Нур"]
[null,null,null,null,null,null,null,null,null,null,null,null,null,null,null,null,"пос.Сазоново"]
[null,null,null,null,null,null,null,null,null,null,null,null,null,null,null,null,"пос.Светлый"]
[null,null,null,null,null,null,null,null,null,null,null,null,null,null,null,null,"пос.Североонежск"]
[null,null,null,null,null,null,null,null,null,null,null,null,null,null,null,null,"пос.Селенгинск"]
[null,null,null,null,null,null,null,null,null,null,null,null,null,null,null,null,"пос.Силикатный"]
[null,null,null,null,null,null,null,null,null,null,null,null,null,null,null,null,"пос.Спирово"]
[null,null,null,null,null,null,null,null,null,null,null,null,null,null,null,null,"пос.Ставрово"]
[null,null,null,null,null,null,null,null,null,null,null,null,null,null,null,null,"пос.Степное Озеро"]
[null,null,null,null,null,null,null,null,null,null,null,null,null,null,null,null,"пос.Стрижи"]
[null,null,null,null,null,null,null,null,null,null,null,null,null,null,null,null,"пос.Теплоозерск"]
[null,null,null,null,null,null,null,null,null,null,null,null,null,null,null,null,"пос.Тургенево"]
[null,null,null,null,null,null,null,null,null,null,null,null,null,null,null,null,"пос.Угловка"]
[null,null,null,null,null,null,null,null,null,null,null,null,null,null,null,null,"пос.Умет"]
[null,null,null,null,null,null,null,null,null,null,null,null,null,null,null,null,"пос.Чегдомын"]
[null,null,null,null,null,null,null,null,null,null,null,null,null,null,null,null,"пос.Шерегеш"]
[null,null,null,null,null,null,null,null,null,null,null,null,null,null,null,null,"пос.Шерловая Гора"]
[null,null,null,null,null,null,null,null,null,null,null,null,null,null,null,null,"пос.Эльбан"]
[null,null,null,null,null,null,null,null,null,null,null,null,null,null,null,null,"пос.Юго-Камский"]
[null,null,null,null,null,null,null,null,null,null,null,null,null,null,null,null,"пос.Янтарный "]
[null,null,null,null,null,null,null,null,null,null,null,null,null,null,null,null,"пос.Ярославский"]
[null,null,null,null,null,null,null,null,null,null,null,null,null,null,null,null,"пос.Яшкино"]
[null,null,null,null,null,null,null,null,null,null,null,null,null,null,null,null,"рабочий поселок (поселок городского типа) Прогресс"]
[null,null,null,null,null,null,null,null,null,null,null,null,null,null,null,null,"с.Светлогорье"]
[null,null,null,null,null,null,null,null,null,null,null,null,null,null,null,null,"с.Туим"]